Cogmind - Beta 12 @@@ ROGUE MODE // 2023.06.17 @ 03:09:42 Player: Cracklepappy Result: Establishing Free Derelict Territories! Performance ------------- Evolutions (9) 4500 Regions Visited (33) 6600 Robots Destroyed (600) 3000 Value Destroyed (28325) 28325 Prototype IDs (64) 1280 Alien Tech Used (3) 600 Bonus (39761) 39761 TOTAL SCORE: 84066 Bonus ------- Triggered High Security 500 High Alert Combat Kills 6715 Follower Combat Kills 1861 Entered Garrisons 200 Network Hubs Disabled 400 Met Zhirov 300 Met Warlord at Base 500 MAIN.C Attacked Warlord 500 Warlord Defense Kills 1914 Built Enhanced Grunts 300 A7 Reached Mainframe 300 Met R17 at Cetus 500 Read Decrypted Archives 300 Met R17 at Research 2000 Destroyed MAIN.C Guards 500 Met MAIN.C 5000 Hacked MAIN.C 300 Destroyed MAIN.C Shell 5000 Destroyed MAIN.C 10000 Met Warlord at Command 2000 Win 3000 Friendly Fire -2329 Cogmind --------- Core Integrity 1506/1600 Matter 84/300 Energy 168/856 System Corruption 9% Temperature Cool (0) Movement Treading (61) Location Free Derelict Territories Parts ------- > --- POWER (3) -------- Quantum-Neutrino Reactor > --- PROPULSION (6) --- Treaded Myomer-Antigrav Exoskeleton > --- UTILITY (12) ----- Armored Scrap Engine Huge Storage Unit Experimental Targeting Computer Advanced Weapon Cycler Advanced Weapon Cycler Centrium Medium Armor Plating Heavy Regenerative Plating Graphene Brace Advanced Force Field Antimissile System > --- WEAPON (4) ------- Advanced Remote Datajack Hvy. Accelerated Omega Construct/C > --- INVENTORY (25) --- Improved Quantum Reactor Experimental Cooling System Experimental Energy Well (600) Compact Matter Pod (26) Experimental Matter Compressor (0) Advanced Kinecellerator Experimental Weapon Shielding Advanced Force Field Antimissile System Hacking Suite Hacking Suite Long-range Tractor Beam Transdimensional Reconstructor High-powered Transdimensional Reconstructor Integrity Redistributor Vortex Rail (35) Enhanced Nova Cannon Cooled Nova Cannon Multirail Multirail Heavy Linear Accelerator Compact Tesla Bomb Launcher Tactical Quantum Warhead Peak State ------------ > --- POWER ------------ Quantum-Neutrino Reactor > --- PROPULSION ------- Treaded Myomer-Antigrav Exoskeleton > --- UTILITY ---------- Armored Scrap Engine Huge Storage Unit Experimental Matter Compressor Experimental Targeting Computer Advanced Weapon Cycler Centrium Medium Armor Plating Heavy Regenerative Plating Advanced Force Field Antimissile System Antimissile System > --- WEAPON ----------- Enhanced Nova Cannon Hvy. Accelerated Omega Construct/C > --- INVENTORY -------- Improved Quantum Reactor Experimental Cooling System Experimental Energy Well Compact Matter Pod Advanced Kinecellerator Advanced Weapon Cycler Experimental Weapon Shielding Graphene Brace Advanced Force Field Hacking Suite Hacking Suite Long-range Tractor Beam Transdimensional Reconstructor High-powered Transdimensional Reconstructor Integrity Redistributor Vortex Rail Cooled Nova Cannon Multirail Multirail Heavy Linear Accelerator Compact Tesla Bomb Launcher Tactical Quantum Warhead Advanced Remote Datajack [Rating: 222] Favorites ----------- Power Constructs Engine Heavy Ion Engine Power Core Micro Fission Core Reactor Constructs Propulsion Light Treads Treads Light Treads Leg Myomer Leg Wheel Compact Wheel Hover Unit Aerolev Unit Flight Unit Impulse Thruster Utility Advanced Targeting Computer Device Armored Scrap Engine Storage Huge Storage Unit Processor Advanced Targeting Computer Hackware Hacking Suite Protection Centrium Medium Armor Plating Artifact Phase Redirector Weapon Constructs Energy Gun EM Shotgun Energy Cannon Constructs Ballistic Gun Enhanced Autogun Ballistic Cannon Heavy Gauss Cannon Launcher Precision Rocket Launcher Special Weapon Advanced Remote Datajack Impact Weapon Heavy Mace Build | -11 -10 -10 -9 -9 -8 -8 -8 -6 -6 -6 -6 -6 -6 -6 -5 -5 -5 -5 -5 -5 -4 -4 -4 -4 -4 -3 -3 -3 -3 -2 -2 -1 -1 ------- Run | Jun Mat Min Mat Min Mat Sto Rec Fac Gar Fac Ext Cet Arc Hub Fac Was Fac Upp Upp Zhi Pro Fac Upp Upp War Pro Res Qua Sec Res Tes Acc Com Slots Evolved 18 | . . . 2 . 2 . . 4 . . . . . . 2 . . . . . . 2 . . . . 2 . . 2 . 2 . Power 2 | . . . . . . . . 1 . . . . . . . . . . . . . 1 . . . . . . . . . . . Propulsion 4 | . . . 1 . . . . 1 . . . . . . 1 . . . . . . 1 . . . . . . . . . . . Utility 10 | . . . 1 . 2 . . 1 . . . . . . 1 . . . . . . . . . . . 2 . . 1 . 2 . Weapon 2 | . . . . . . . . 1 . . . . . . . . . . . . . . . . . . . . . 1 . . . Parts Attached 404 | 9 27 2 34 . 27 33 6 4 12 2 10 2 3 16 3 3 4 6 5 6 11 17 9 6 16 13 17 17 31 3 1 8 41 Power 13 | 1 2 . 1 . 2 1 . . . . . . . . . . . . . . . 1 2 . 1 2 . . . . . . . Engine 6 | 1 2 . 1 . 1 1 . . . . . . . . . . . . . . . . . . . . . . . . . . . Core 4 | . . . . . 1 . . . . . . . . . . . . . . . . 1 1 . 1 . . . . . . . . Reactor 3 | . . . . . . . . . . . . . . . . . . . . . . . 1 . . 2 . . . . . . . Propulsion 46 | 2 4 . 10 . 5 17 3 . . . . . . . . . . . . 1 . 1 2 . . 1 . . . . . . . Treads 37 | 1 4 . 10 . 5 14 3 . . . . . . . . . . . . . . . . . . . . . . . . . . Leg 3 | . . . . . . . . . . . . . . . . . . . . 1 . . 2 . . . . . . . . . . Wheel 1 | 1 . . . . . . . . . . . . . . . . . . . . . . . . . . . . . . . . . Hover 2 | . . . . . . 1 . . . . . . . . . . . . . . . . . . . 1 . . . . . . . Flight 3 | . . . . . . 2 . . . . . . . . . . . . . . . 1 . . . . . . . . . . . Utility 224 | 2 6 . 5 . 11 4 2 2 5 1 8 2 3 11 3 3 2 1 4 3 2 12 4 4 10 7 14 16 31 1 1 8 36 Device 131 | 1 1 . 1 . 2 1 1 . 2 1 4 1 1 6 2 3 . . 2 1 1 5 3 3 9 7 8 11 25 . 1 8 20 Storage 14 | 1 4 . . . 1 . 1 . . . 2 . . 1 . . . . . . . . . . . . . . 1 . . . 3 Processor 10 | . . . . . 3 . . . . . . . . . . . . 1 . . . 2 . . . . . . 1 . . . 3 Hackware 9 | . . . . . 1 1 . . . . . . . 1 . . 1 . . . . . . . . . . . . . . . 5 Protection 58 | . 1 . 4 . 4 2 . 2 3 . 2 1 2 3 1 . 1 . 2 2 1 5 1 1 1 . 6 3 4 1 . . 5 Artifact 2 | . . . . . . . . . . . . . . . . . . . . . . . . . . . . 2 . . . . . Weapon 121 | 4 15 2 18 . 9 11 1 2 7 1 2 . . 5 . . 2 5 1 2 9 3 1 2 5 3 3 1 . 2 . . 5 Energy Gun 27 | 4 10 1 5 . 2 . . . . . . . . . . . . . . 1 . 1 . . 1 . . . . 1 . . 1 Energy Cannon 4 | . . . . . . . . . . . . . . 1 . . . . . . . . . . . . . . . 1 . . 2 Ballistic Gun 58 | . 3 . 11 . 7 8 1 1 3 . . . . 2 . . 2 2 1 1 5 . 1 1 3 2 3 1 . . . . . Ballistic Cannon 4 | . . . . . . . . . 2 . . . . . . . . . . . . 2 . . . . . . . . . . . Launcher 19 | . . 1 2 . . . . 1 1 1 1 . . 1 . . . 3 . . 4 . . 1 1 1 . . . . . . 1 Special Weapon 3 | . 2 . . . . . . . . . . . . . . . . . . . . . . . . . . . . . . . 1 Impact Weapon 6 | . . . . . . 3 . . 1 . 1 . . 1 . . . . . . . . . . . . . . . . . . . Slashing Weapon . | . . . . . . . . . . . . . . . . . . . . . . . . . . . . . . . . . . Piercing Weapon . | . . . . . . . . . . . . . . . . . . . . . . . . . . . . . . . . . . Special Melee Weapon . | . . . . . . . . . . . . . . . . . . . . . . . . . . . . . . . . . . Unidentified Prototypes 35 | . . . . . 3 4 . . . 1 1 1 . 4 . 1 . . . 3 . 4 . . 5 . . 2 1 1 1 . 3 Parts Lost 18 | . 3 . 3 . 3 1 . . 4 1 1 . . 1 . . . . . . . . . . . . . . 1 . . . . Power 2 | . 1 . . . . . . . 1 . . . . . . . . . . . . . . . . . . . . . . . . Propulsion 6 | . . . 2 . 2 1 . . 1 . . . . . . . . . . . . . . . . . . . . . . . . Utility 6 | . . . 1 . 1 . . . 1 1 1 . . . . . . . . . . . . . . . . . 1 . . . . Weapon 4 | . 2 . . . . . . . 1 . . . . 1 . . . . . . . . . . . . . . . . . . . Highest Loss Streak 3 | . 1 . 2 . 3 1 . . 2 1 1 . . 1 . . . . . . . . . . . . . . 1 . . . . To Critical Strikes . | . . . . . . . . . . . . . . . . . . . . . . . . . . . . . . . . . . Average Slot Usage (%) 73 | . 99 100 99 100 99 99 83 59 59 55 57 60 60 59 58 58 57 58 57 58 57 58 53 52 52 55 60 54 51 51 51 56 55 Engine 5 | . 14 14 11 11 3 9 8 6 3 . 4 . . . . 3 5 5 5 . . . . . . . . . . . . . . Core 1 | . . . . . 5 . . . . . . 6 6 4 . . . . . 1 5 9 1 . . . . . . . . . . Reactor 1 | . . . . . . . . . 2 6 . . . 1 5 1 . . . 3 . . 4 5 5 8 9 6 4 4 4 4 4 Treads 12 | . 27 28 32 33 26 26 16 . . . 1 6 6 6 5 3 . . . 1 . . 4 5 5 5 4 1 . . . . . Device 9 | . 6 . 1 . 2 4 4 6 12 14 12 13 13 10 17 17 11 11 14 11 13 11 14 14 15 14 19 22 20 17 16 24 19 Storage 7 | . 14 14 11 11 9 9 9 6 6 6 6 6 6 6 5 5 5 5 5 5 5 5 5 5 5 5 4 4 4 4 4 4 4 Processor 7 | . . . . . 10 18 18 13 6 6 6 6 6 6 5 5 5 10 11 11 11 8 5 5 5 5 4 4 7 8 8 8 9 Hackware 1 | . . . . . 7 7 4 . . . . . . 1 . . 4 . . . . . . . . . . . . . . . 1 Protection 7 | . 7 14 20 22 15 6 4 5 6 4 4 5 5 6 5 5 4 5 1 5 2 4 5 5 5 5 7 4 3 3 4 4 5 Energy Gun 3 | . 22 28 3 . 1 . . . . . . . . . . . . . . 3 . . . . . . . . . 4 . . . Ballistic Gun 7 | . 5 . 18 22 16 17 12 1 1 . . . . 2 5 5 4 4 5 1 4 1 4 5 4 4 4 . . . . . . Ballistic Cannon 2 | . . . . . . . . . 6 8 1 6 6 4 . 3 5 5 5 5 5 8 5 5 5 5 4 4 4 3 4 4 3 Naked Turns . | . . . . . . . . . . . . . . . . . . . . . . . . . . . . . . . . . . Heaviest Build 222 | 15 95 95 102 98 108 102 101 36 57 61 90 90 90 131 146 147 141 141 138 138 139 146 149 141 140 147 155 163 155 182 182 198 222 Greatest Support 268 | 16 40 40 60 60 60 60 60 30 75 89 130 130 130 179 179 179 172 172 172 187 105 153 202 202 202 268 268 268 150 235 235 235 235 Greatest Overweight (x) 5 | . 2 2 1 1 2 1 5 1 1 . . . . . . . . . . 1 1 1 . . . . . 1 1 . . . . Average Overweight (x) . | . 1 2 1 1 1 1 . . . . . . . . . . . . . . 1 . . . . . . . . . . . . Largest Inventory Capacity 25 | 8 25 25 25 25 25 25 25 10 10 10 15 15 15 25 25 25 25 25 25 25 25 25 25 25 25 25 25 25 25 25 25 25 25 Average Capacity 22 | 7 23 25 25 25 25 25 23 10 10 10 10 15 15 16 25 25 25 25 25 25 25 25 25 25 25 25 25 25 25 25 25 25 25 Most Carried 25 | 8 25 25 25 25 25 25 25 10 10 10 14 15 15 22 25 25 25 25 25 25 25 25 25 25 25 25 25 25 25 25 25 25 25 Average Carried 21 | 5 22 24 24 25 24 24 16 9 9 9 9 14 14 15 23 24 24 24 24 24 25 24 24 25 24 24 24 24 24 23 24 24 24 Final Capacity 25 | 8 25 25 25 25 25 25 10 10 10 10 15 15 15 25 25 25 25 25 25 25 25 25 25 25 25 25 25 25 25 25 25 25 25 Final Carried 25 | 8 25 25 25 25 25 25 10 10 10 10 14 15 15 22 25 25 25 25 25 25 25 25 25 25 25 25 25 25 25 24 25 25 24 Scrap Engine Consumption 275 | . . . . . . . 62 4 28 21 23 13 . 4 . 23 5 2 2 9 2 22 5 1 11 1 7 7 6 . 2 10 5 Constructs Created 3 | . . . . . . . 3 . . . . . . . . . . . . . . . . . . . . . . . . . . Constructs Modified 125 | . . . . . . . 24 2 18 6 8 . . 5 1 16 . . . 11 2 6 6 . . 4 . 5 . 7 . 1 3 Class Distribution -------------------- 46% | Construct 27% | Mutant 12% | Scavenger-Mutant 8% | Commander-Construct 4% | Scavenger-Construct Dominant Class ---------------- Mutant | -10/Materials Mutant | -10/Mines Scavenger-Mutant | -9/Materials Scavenger-Mutant | -9/Mines Scavenger-Mutant | -8/Materials Scavenger-Mutant | -8/Storage Mutant | -8/Recycling Construct | -6/Factory Construct | -6/Garrison Construct | -6/Factory Commander-Construct | -6/Extension Commander-Construct | -6/Cetus Commander-Construct | -6/Archives Commander-Construct | -6/Hub_04(d) Construct | -5/Factory Construct | -5/Waste Construct | -5/Factory Construct | -5/Upper Caves Construct | -5/Upper Caves Construct | -5/Zhirov Construct | -4/Proximity Caves Construct | -4/Factory Construct | -4/Upper Caves Construct | -4/Upper Caves Construct | -4/Warlord Construct | -3/Proximity Caves Scavenger-Construct | -3/Research Construct | -3/Quarantine Construct | -3/Section 7 Construct | -2/Research Construct | -2/Testing Scavenger-Construct | -1/Access Construct | -1/Command Resources | -11 -10 -10 -9 -9 -8 -8 -8 -6 -6 -6 -6 -6 -6 -6 -5 -5 -5 -5 -5 -5 -4 -4 -4 -4 -4 -3 -3 -3 -3 -2 -2 -1 -1 ----------- Run | Jun Mat Min Mat Min Mat Sto Rec Fac Gar Fac Ext Cet Arc Hub Fac Was Fac Upp Upp Zhi Pro Fac Upp Upp War Pro Res Qua Sec Res Tes Acc Com Matter Collected 13164 | 290 447 31 1018 35 759 1426 591 3 564 321 475 90 4 335 66 142 39 190 93 70 266 418 309 175 359 466 353 747 1554 . 90 480 958 Remotely 1227 | . . . . . . . . . . . . . . . . . . . . . . . . . 293 . 158 65 347 . . . 364 Salvage Created 35306 | 156 957 93 1811 173 955 2278 2080 30 883 1376 2659 395 40 1080 390 1673 182 858 748 358 533 1775 818 167 1011 1543 465 1203 2531 . 306 2333 3446 Parts 1573 | 9 63 9 123 6 47 103 72 5 52 51 91 15 5 58 17 32 12 44 19 6 35 95 37 8 30 52 30 54 128 . 17 110 138 Haulers Intercepted 24 | . 2 . 5 . 3 6 1 . . 1 . . . . . . . . . . . 2 . . . 1 1 . . . . 2 . Recyclers Shooed 10 | . 1 . 2 . . 1 3 . . . . . . . . . . . . . . 2 . . . . . . 1 . . . . Parts Field Recycled . | . . . . . . . . . . . . . . . . . . . . . . . . . . . . . . . . . . Retrieved Matter . | . . . . . . . . . . . . . . . . . . . . . . . . . . . . . . . . . . Parts Self-Destructed 181 | . . . . . . . . . . . . . . . . . . 37 17 . 31 . 33 8 . 55 . . . . . . . Prevented 8 | . . . . . . . . . . . . . . . . . . . 1 4 . . . 3 . . . . . . . . . Kills | -11 -10 -10 -9 -9 -8 -8 -8 -6 -6 -6 -6 -6 -6 -6 -5 -5 -5 -5 -5 -5 -4 -4 -4 -4 -4 -3 -3 -3 -3 -2 -2 -1 -1 ------- Run | Jun Mat Min Mat Min Mat Sto Rec Fac Gar Fac Ext Cet Arc Hub Fac Was Fac Upp Upp Zhi Pro Fac Upp Upp War Pro Res Qua Sec Res Tes Acc Com Combat Hostiles Destroyed 443 | . 19 5 35 2 13 31 10 3 22 12 32 6 . 12 1 5 6 19 10 . 19 19 13 5 14 24 3 14 29 . 3 23 34 Melee 1 | . . . . . . . . . . . . . . . . . 1 . . . . . . . . . . . . . . . . Guns 99 | . 16 2 27 2 13 31 8 . . . . . . . . . . . . . . . . . . . . . . . . . . Cannons 290 | . . . . . . . 2 . 19 12 26 6 . 9 1 5 5 12 10 . 7 19 13 4 12 22 3 14 29 . 3 23 34 AOE 51 | . 3 3 6 . . . . 3 3 . 6 . . 3 . . . 7 . . 12 . . 1 2 2 . . . . . . . Classes Destroyed 23 | 3 4 . 6 . 1 . 1 . 1 1 . . . 1 . 1 . 1 . . . 1 . . 1 . . 1 . . . . . Worker 22 | 1 . . 1 1 . 1 . . . 1 . . . 5 1 . . . . . . 2 . . . . . . 1 . . 5 3 Builder 11 | . . . 2 . . . 1 . . . . . . . 1 . . . . . . 1 . . . . 1 . 3 . 1 1 . Tunneler 5 | 3 . . 1 . . . . . . . . . . . . . . . . . . . . . . . . . . . . 1 . Hauler 24 | . 2 . 5 . 3 6 1 . . 1 . . . . . . . . . . . 2 . . . 1 1 . . . . 2 . Recycler 42 | 1 1 . 1 . 1 5 16 . . 4 6 . . 1 2 . . . . . . 1 . . . . . . 2 . . . 1 Mechanic 1 | . . . 1 . . . . . . . . . . . . . . . . . . . . . . . . . . . . . . Operator 12 | . . . 2 . 1 . . . . . 1 . . 1 . . . . . . . 1 . . . . . 1 . . 1 2 2 Watcher 32 | . 3 . 4 . 2 . . . . 1 . 1 . 2 1 . . . . . . 3 . . . . 3 3 4 . . 4 1 Swarmer 87 | . 3 3 8 . . . . 3 13 1 . 1 . . . . 4 11 . . 14 . 3 4 . 6 . . 3 . . 4 6 Saboteur 2 | . . . . . . . . . . 1 . . . . . . 1 . . . . . . . . . . . . . . . . Grunt 163 | . 16 2 19 1 7 18 1 . 4 8 18 2 . 5 . . . 3 8 . 1 8 5 . 7 12 . 4 5 . . 2 7 Brawler 14 | . . . 1 1 . 1 1 . . . 1 . . . . . . 1 1 . . . 1 . 3 2 . 1 . . . . . Duelist 12 | . . . 1 . 1 1 . . . 1 2 . . . . . . 1 . . . . 1 . 1 2 . . . . . . 1 Protector 3 | . . . . . . . 1 . . . . . . 1 . . . . . . . . . . 1 . . . . . . . . Sentry 57 | . . . 6 . 4 11 6 . 3 1 5 . . 2 . . . 2 1 . 1 2 1 1 . 1 . . 6 . . 3 1 Demolisher 1 | . . . . . . . . . . . . . . 1 . . . . . . . . . . . . . . . . . . . Specialist 3 | . . . . . . . . . . . . . . . . . . . . . . . . . 2 . . 1 . . . . . Hunter 35 | . . . . . 1 . 1 . 1 . 5 . . . . . 1 . . . 2 . 2 . . . 1 4 2 . 3 6 6 Programmer 39 | . . . . . . . . . . . . . . . . . . 1 . . . 8 . . . 1 2 3 12 . . 7 5 Heavy 3 | . . . . . . . . . . . . . . . . . . . . . . 1 . . . . . . . . . 1 1 Behemoth 5 | . . . . . . . . . 1 . 1 . . . 1 . . . . . 1 . . . . . . . . . . . 1 Compactor 5 | . . . . . . . . . . . . . . . . 5 . . . . . . . . . . . . . . . . . Cetus Guard 3 | . . . . . . . . . . . . 3 . . . . . . . . . . . . . . . . . . . . . S7 Guard 1 | . . . . . . . . . . . . . . . . . . . . . . . . . . . . . 1 . . . . M Guard 1 | . . . . . . . . . . . . . . . . . . . . . . . . . . . . . . . . . 1 Lightning 3 | . . . . . . . . . . . . . . 3 . . . . . . . . . . . . . . . . . . . Combat Programmer 2 | . . . . . . . . . . . . . . . . . . . . . . . . . . . . . . . . . 2 Alpha 7 2 | . . . . . . . . . . . . . . . . . . . . . . . . . . . . 1 . . . . 1 Wasp 1 | . . . . . . . . . . . . . . . . 1 . . . . . . . . . . . . . . . . . Thug 3 | . . . . 1 . . . . . . . . . . . 2 . . . . . . . . . . . . . . . . . Butcher 1 | . . . . . . . . . . . 1 . . . . . . . . . . . . . . . . . . . . . . Martyr 2 | . . . . . . . . . . . . . . . . 2 . . . . . . . . . . . . . . . . . Guerrilla 1 | . . . . . . . . . . . 1 . . . . . . . . . . . . . . . . . . . . . . Best Kill Streak 11 | 3 6 3 5 3 3 10 6 3 4 8 6 7 . 6 3 2 4 9 5 . 5 4 5 4 7 11 3 9 8 . 3 10 9 Combat Bots Only 11 | . 5 3 4 2 3 7 2 3 4 5 6 6 . 4 1 2 4 9 5 . 5 4 5 4 7 11 2 8 5 . 3 5 6 Max Kills in Single Turn 5 | 1 2 3 3 1 2 2 2 2 2 1 2 1 . 2 1 1 1 3 1 . 3 2 1 1 2 2 2 2 2 . 2 5 2 Gunslinging . | . . . . . . . . . . . . . . . . . . . . . . . . . . . . . . . . . . Exploded 3 | . 2 3 2 . . . . 2 2 . 2 . . 2 . . . 3 . . 3 . . 1 2 1 . . . . . . . Melee 1 | . . . . . . . . . . . . . . . . . 1 . . . . . . . . . . . . . . . . Uniques/NPCs Destroyed 2 | . . . . . . . . . . . . . . . . . . . . . . . . . . . . . . . . . 2 MAIN.C Shell (-1/Command) MAIN.C (-1/Command) Combat | -11 -10 -10 -9 -9 -8 -8 -8 -6 -6 -6 -6 -6 -6 -6 -5 -5 -5 -5 -5 -5 -4 -4 -4 -4 -4 -3 -3 -3 -3 -2 -2 -1 -1 -------- Run | Jun Mat Min Mat Min Mat Sto Rec Fac Gar Fac Ext Cet Arc Hub Fac Was Fac Upp Upp Zhi Pro Fac Upp Upp War Pro Res Qua Sec Res Tes Acc Com Damage Taken 16318 | . 636 98 1423 64 858 1235 445 10 2375 638 817 161 . 832 133 . 144 238 156 . 343 879 258 85 212 413 137 792 799 . 94 484 1559 Core 1232 | . 112 26 133 28 63 127 15 . 212 79 21 18 . . 16 . . 12 11 . 41 84 11 . . 24 22 54 29 . . 26 68 Absorbed by Shields 6973 | . . . . . . . . 3 16 . 468 170 . 105 135 . 153 249 163 . 355 890 278 92 66 431 144 598 630 . 96 455 1476 Reduced by Siege Mode 43 | . . . . . . . . . . . . . . . . . . . . . . . . . . . . . . . . . 43 Redirected to Core 11 | . . . . . . . . . . . . . . . . . . . . . . . . . . . . 11 . . . . . Redirected to Shielding 49 | . . 4 29 6 10 . . . . . . . . . . . . . . . . . . . . . . . . . . . . Regen/Repaired (Parts) 8175 | . 100 . 119 . 101 96 . . 807 571 608 . . 271 60 319 38 . . 328 91 681 420 . 19 554 . 393 . 1130 202 229 1038 Core Remaining (%) 79 | 100 . 44 . 59 . . 62 . . . . . . 61 . . . . . . 92 . . . . 89 . . 91 . 100 . 94 Volleys Fired 1897 | 25 100 5 124 5 85 127 84 2 105 62 115 31 2 57 21 53 13 84 33 19 30 98 41 15 45 73 42 51 95 . 15 98 142 Largest 2 | 1 2 2 2 2 2 2 2 1 2 1 1 1 1 1 1 1 1 1 1 1 1 1 1 1 1 1 1 1 1 . 1 1 2 Hottest 190 | 50 100 90 90 48 50 50 53 30 106 53 53 53 53 53 53 53 60 60 60 60 60 60 60 47 47 47 41 61 61 . 61 61 190 Shots Fired 2389 | 25 171 9 240 10 170 250 147 2 127 62 115 31 2 57 21 53 13 84 33 19 30 100 41 15 45 73 42 50 94 . 15 98 145 Gun 1034 | 25 169 8 235 10 170 250 126 . 21 . . . . . . . . . . 19 . 1 . . . . . . . . . . . Cannon 1313 | . . . . . . . 21 . 102 62 108 31 2 55 21 53 13 81 33 . 21 99 41 14 44 69 42 50 94 . 15 98 144 Launcher 39 | . . 1 5 . . . . 2 4 . 7 . . 2 . . . 3 . . 9 . . 1 1 4 . . . . . . . Special 3 | . 2 . . . . . . . . . . . . . . . . . . . . . . . . . . . . . . . 1 Kinetic 1991 | . 58 . 210 10 170 250 147 . 123 62 49 31 2 24 . . 13 81 33 . 21 100 41 14 44 69 42 50 94 . 15 98 140 Thermal 230 | 25 37 . . . . . . . . . 59 . . 31 21 53 . . . . . . . . . . . . . . . . 4 Explosive 39 | . . 1 5 . . . . 2 4 . 7 . . 2 . . . 3 . . 9 . . 1 1 4 . . . . . . . Electromagnetic 128 | . 76 8 25 . . . . . . . . . . . . . . . . 19 . . . . . . . . . . . . . Robot Hit Streak 68 | 5 10 3 22 16 17 68 24 . 14 18 19 11 13 14 9 12 2 5 16 35 38 13 16 6 11 22 6 19 17 . 5 9 26 Robot Miss Streak 5 | 4 4 2 5 . 4 5 1 . 3 3 4 2 . 3 3 5 2 1 3 . 1 2 3 1 1 2 3 1 2 . 1 4 2 Penetration Max 2 | . . . . . . . . . . . 1 1 . 1 . . . 1 1 . 1 1 1 . 1 1 1 1 1 . 2 2 1 Secondary Targets 8 | . 1 . 3 . . 4 . . . . . . . . . . . . . . . . . . . . . . . . . . . Max Gunslinging Chain 1 | . 1 . 1 . . 1 . . . . . . . . . . . . . . . . . . . . . . . . . . . Shots Hit Robots 1660 | 16 107 7 165 10 134 199 118 . 94 41 77 26 2 29 13 40 6 26 27 19 21 69 33 7 22 58 23 37 57 . 5 55 117 Core Hits 720 | 6 45 8 72 6 43 74 40 4 33 21 60 9 1 28 4 11 2 20 10 5 23 24 14 5 20 24 8 14 24 . 3 23 36 Critical Kills 46 | . . . 1 . . . 1 . 1 2 3 4 . 2 . 3 2 2 2 . 1 6 2 1 2 2 1 . 6 . . 1 1 Critical Parts Destroyed 100 | . . . . 1 2 . 2 . 1 . 7 4 1 5 3 1 2 8 4 . 5 10 6 . 3 7 6 2 12 . . . 8 Critical Strikes 177 | 3 3 . 2 1 2 . 4 . 2 2 11 8 1 7 5 14 4 11 6 . 7 18 9 1 5 10 8 2 20 . . 1 10 Burn 6 | 3 3 . . . . . . . . . . . . . . . . . . . . . . . . . . . . . . . . Destroy 170 | . . . 1 1 2 . 4 . 2 2 11 8 1 7 5 14 4 11 6 . 7 18 9 1 5 10 8 2 20 . . 1 10 Corrupt 1 | . . . 1 . . . . . . . . . . . . . . . . . . . . . . . . . . . . . . Melee Attacks 12 | . . . . . . 3 . . . . 4 1 . 4 . . . . . . . . . . . . . . . . . . . Impact 12 | . . . . . . 3 . . . . 4 1 . 4 . . . . . . . . . . . . . . . . . . . Slashing . | . . . . . . . . . . . . . . . . . . . . . . . . . . . . . . . . . . Piercing . | . . . . . . . . . . . . . . . . . . . . . . . . . . . . . . . . . . Sneak Attacks . | . . . . . . . . . . . . . . . . . . . . . . . . . . . . . . . . . . Combat Hostiles . | . . . . . . . . . . . . . . . . . . . . . . . . . . . . . . . . . . Follow-up Attacks . | . . . . . . . . . . . . . . . . . . . . . . . . . . . . . . . . . . Damage Inflicted 119600 | 226 1429 200 2922 195 2217 3605 2320 217 3268 2396 6632 1858 137 2832 1124 3625 781 3311 2726 316 3020 6606 2600 615 2706 5416 2122 6686 10605 . 874 13108 22905 Guns 12221 | 226 1208 56 2475 145 2188 3598 1658 . 326 . . . . . . . . . . 316 . 25 . . . . . . . . . . . Cannons 100759 | . . . . . . . 662 . 2632 2396 5311 1798 137 2120 1124 3625 781 2856 2726 . 1686 6562 2600 560 2500 4922 2122 6658 10605 . 874 12597 22905 Explosions 6400 | . 183 144 430 . . . . 217 310 . 1321 . . 712 . . . 455 . . 1334 . . 55 206 494 . 28 . . . 511 . Melee 60 | . . . . . . . . . . . . 60 . . . . . . . . . . . . . . . . . . . . . Ramming 160 | . 38 . 17 50 29 7 . . . . . . . . . . . . . . . 19 . . . . . . . . . . . Kinetic 102813 | . 341 . 2158 145 2188 3598 2320 . 2958 2396 2763 1798 137 1126 . . 781 2856 2726 . 1686 6587 2600 560 2500 4922 2122 6658 10605 . 874 12597 22811 Thermal 9018 | 226 407 . . . . . . . . . 2548 . . 994 1124 3625 . . . . . . . . . . . . . . . . 94 Explosive 5179 | . . 144 430 . . . . 217 310 . 1321 . . 185 . . . 455 . . 1334 . . 55 206 494 . 28 . . . . . Electromagnetic 2370 | . 643 56 317 . . . . . . . . . . 527 . . . . . 316 . . . . . . . . . . . 511 . Impact 60 | . . . . . . . . . . . . 60 . . . . . . . . . . . . . . . . . . . . . Slashing . | . . . . . . . . . . . . . . . . . . . . . . . . . . . . . . . . . . Piercing . | . . . . . . . . . . . . . . . . . . . . . . . . . . . . . . . . . . Highest Corruption 10 | . . . . . . . 1 . . . 3 4 4 6 . . . . . . . 4 4 4 4 . 1 2 10 . . . 9 Average Corruption 3 | . . . . . . . 1 . . . 2 3 2 4 . . . . . . . 3 4 4 4 . 1 1 4 . . . 2 Corruption Purged 4 | . . . . . . . . . . . . . 4 . . . . . . . . . . . . . . . . . . . . Corruption Blocked 40 | . . . . . . . . . . . . . . . . . . . . . . . . . . . . . . . 40 . . Effects 130 | . . . . . . . 2 . . . 7 7 2 3 . . . . . . . 21 22 21 1 . 4 12 20 . . . 8 Message Errors 31 | . . . . . . . . . . . 4 2 . 1 . . . . . . . 3 3 4 . . . 4 8 . . . 2 Matter Fused 31 | . . . . . . . 1 . . . 1 1 1 . . . . . . . . 2 8 6 1 . 2 4 3 . . . 1 Heat Flow Errors 17 | . . . . . . . 1 . . . . 1 1 1 . . . . . . . 3 3 3 . . . 2 1 . . . 1 Energy Discharges 17 | . . . . . . . . . . . . 2 . . . . . . . . . 3 2 4 . . 1 . 3 . . . 2 Parts Rejected 2 | . . . . . . . . . . . . . . . . . . . . . . 1 . . . . . . 1 . . . . Parts Fused 1 | . . . . . . . . . . . . . . . . . . . . . . . . . . . . . . . . . 1 Data Loss (minor) 23 | . . . . . . . . . . . 1 . . 1 . . . . . . . 5 6 4 . . 1 1 3 . . . 1 Data Loss (major) 4 | . . . . . . . . . . . 1 1 . . . . . . . . . 2 . . . . . . . . . . . Misfires 2 | . . . . . . . . . . . . . . . . . . . . . . 2 . . . . . . . . . . . Weapon Failures 2 | . . . . . . . . . . . . . . . . . . . . . . . . . . . . 1 1 . . . . Overload Shots . | . . . . . . . . . . . . . . . . . . . . . . . . . . . . . . . . . . Overflow Damage 16569 | . 6 . . . 7 . 61 5 92 179 320 79 2 321 193 55 374 405 386 . 57 955 198 110 214 400 277 1469 3080 . 244 3176 3904 Projectiles 16350 | . . . . . . . 61 . 69 179 302 54 2 272 193 55 374 402 386 . 24 955 198 110 214 388 277 1469 3080 . 244 3138 3904 Explosions 187 | . 6 . . . . . . 5 23 . 18 . . 49 . . . 3 . . 33 . . . . 12 . . . . . 38 . Melee 32 | . . . . . 7 . . . . . . 25 . . . . . . . . . . . . . . . . . . . . . Knockbacks 224 | . . . . . . . 4 . 14 12 10 1 1 3 . . 5 5 15 . 2 20 14 5 9 18 5 19 13 . 2 14 33 Impact . | . . . . . . . . . . . . . . . . . . . . . . . . . . . . . . . . . . Kinetic 202 | . . . . . . . 2 . 14 11 8 1 1 3 . . 3 5 12 . 1 17 12 4 8 17 5 17 12 . 2 14 33 Secondary 22 | . . . . . . . 2 . . 1 2 . . . . . 2 . 3 . 1 3 2 1 1 1 . 2 1 . . . . Self-Inflicted Damage 302 | . 11 . 40 . . . . . 17 . 51 . . 89 . . . . . . 69 . . . . 25 . . . . . . . Shots 7 | . 1 . 1 . . . . . 1 . 1 . . 1 . . . . . . 1 . . . . 1 . . . . . . . Rammed 25 | . 13 . 2 8 2 . . . . . . . . . . . . . . . . . . . . . . . . . . . . Targets Rammed 34 | . 14 . 5 10 2 2 . . . . . . . . . . . . . . . 1 . . . . . . . . . . . Kicked 1 | . . . . . . . . . . . . . . . . . . . . . . 1 . . . . . . . . . . . Crushed 8 | . 1 . 3 2 . 2 . . . . . . . . . . . . . . . . . . . . . . . . . . . Highest Temperature 398 | 80 220 180 374 20 122 96 112 6 398 138 261 377 221 237 30 24 65 130 139 . 34 136 226 233 22 66 21 185 138 . . . 146 Average Temperature 52 | 30 51 100 76 10 27 22 27 6 103 42 70 127 88 84 15 10 29 39 58 . 19 37 36 61 8 23 10 50 92 . . . 94 Received Heat Transfer 3560 | . 333 48 489 18 369 558 180 . 369 270 171 4 . 175 16 . 16 28 49 . 8 114 32 . 7 68 4 95 75 . 8 . 56 Effects 2 | . . . 1 . . . . . 1 . . . . . . . . . . . . . . . . . . . . . . . . Interference 1 | . . . . . . . . . 1 . . . . . . . . . . . . . . . . . . . . . . . . Short Circuit 1 | . . . 1 . . . . . . . . . . . . . . . . . . . . . . . . . . . . . . Siege Activations 2 | . . . . . . . . . . . . . . . . . . . . . . . . . . . . . . . . . 2 Total Turns 46 | . . . . . . . . . . . . . . . . . . . . . . . . . . . . . . . . . 46 Longest Duration 30 | . . . . . . . . . . . . . . . . . . . . . . . . . . . . . . . . . 30 Robots Corrupted 5 | . 1 . 2 . . . . . . . . . . . . . . . . 2 . . . . . . . . . . . . . Combat Hostiles 3 | . . . 2 . . . . . . . . . . . . . . . . 1 . . . . . . . . . . . . . Parts Fried 22 | . 4 . 3 . . . . . . . . 2 . 1 . . . 3 . 4 . . . . . . . . . . . 5 . Impact Corruptions 18 | . . . . . 1 . 1 . . . . 2 . . . . 5 6 1 . . 1 . . . . . . 1 . . . . Robots Melted . | . . . . . . . . . . . . . . . . . . . . . . . . . . . . . . . . . . Combat Hostiles . | . . . . . . . . . . . . . . . . . . . . . . . . . . . . . . . . . . Parts Melted 7 | 2 1 . . . . . . . . . 2 . . 1 . . . . . . . . . . . . . 1 . . . . . Heat Transferred 5893 | 888 1188 . . . . . . . . . 1100 . . 423 518 1702 . . . . . . . . . . . . . . . . 74 Parts Sabotaged 4 | . . . . . . . . . . . . . . 1 . . 2 . . . . . . . . . . . . . . . 1 Parts Stolen . | . . . . . . . . . . . . . . . . . . . . . . . . . . . . . . . . . . Parts Stripped . | . . . . . . . . . . . . . . . . . . . . . . . . . . . . . . . . . . Power Chain Reactions 4 | . 4 . . . . . . . . . . . . . . . . . . . . . . . . . . . . . . . . Missiles Intercepted 11 | . . . . . . . . . . . . . . . . . . . . . . . . . . . . . . . . . 11 Alert | -11 -10 -10 -9 -9 -8 -8 -8 -6 -6 -6 -6 -6 -6 -6 -5 -5 -5 -5 -5 -5 -4 -4 -4 -4 -4 -3 -3 -3 -3 -2 -2 -1 -1 ------- Run | Jun Mat Min Mat Min Mat Sto Rec Fac Gar Fac Ext Cet Arc Hub Fac Was Fac Upp Upp Zhi Pro Fac Upp Upp War Pro Res Qua Sec Res Tes Acc Com Peak Influence 1940 | 25 392 234 672 306 208 245 91 274 1072 808 1698 1579 642 1277 771 279 643 . . . . 300 . . . . 630 667 1373 728 609 1363 1940 Initial 950 | . 16 108 . 251 . 7 76 185 194 562 387 950 631 . 625 269 . . . . . . . . . . 210 129 297 728 409 364 835 Average 296 | 8 240 41 357 128 60 86 35 254 509 674 1019 1340 254 609 689 104 303 . . . . 176 . . . . 488 414 783 728 547 773 1268 Maximum Alert Level 5 | . 1 1 2 1 1 1 . 1 3 3 5 4 2 4 3 1 2 . . . . 1 . . . . 2 2 4 3 2 4 5 Low Security (%) 52 | 100 22 87 35 68 99 92 100 21 6 . . . 54 11 . 64 41 . . . . 48 . . . . . 15 . . . . . Level 1 18 | . 77 12 8 31 . 7 . 78 13 . . . 15 17 . 35 14 . . . . 51 . . . . 22 28 14 . . 29 . Level 2 17 | . . . 55 . . . . . 66 54 12 . 30 42 62 . 43 . . . . . . . . . 77 56 32 . 100 18 . Level 3 6 | . . . . . . . . . 13 45 54 28 . 9 37 . . . . . . . . . . . . . 31 100 . 24 34 Level 4 3 | . . . . . . . . . . . 23 71 . 18 . . . . . . . . . . . . . . 22 . . 27 37 Level 5 . | . . . . . . . . . . . 8 . . . . . . . . . . . . . . . . . . . . . 3 High Security . | . . . . . . . . . . . . . . . . . . . . . . . . . . . . . . . . . 24 Max Security . | . . . . . . . . . . . . . . . . . . . . . . . . . . . . . . . . . . Squads Dispatched 82 | . 6 . 6 . 4 3 . . . 4 5 . . 6 . . 3 . . . . 5 . . . 3 4 4 8 2 2 6 11 Investigation 13 | . 4 . 2 . 2 . . . . . 1 . . 1 . . 1 . . . . 1 . . . . 1 . . . . . . Extermination 13 | . . . . . . . . . . 1 . . . 1 . . . . . . . 2 . . . . . 2 4 . . 2 1 Reinforcement 29 | . 2 . 3 . . 1 . . . 2 4 . . 1 . . . . . . . 2 . . . . 2 1 3 2 2 3 1 Assault 24 | . . . 1 . . 2 . . . 1 . . . 3 . . 2 . . . . . . . . 3 1 1 . . . 1 9 Garrison 3 | . . . . . 2 . . . . . . . . . . . . . . . . . . . . . . . 1 . . . . Intercept . | . . . . . . . . . . . . . . . . . . . . . . . . . . . . . . . . . . Searches Triggered . | . . . . . . . . . . . . . . . . . . . . . . . . . . . . . . . . . . Construction Impeded 1 | . . . . . . . . . . . 1 . . . . . . . . . . . . . . . . . . . . . . Haulers Reinforced 5 | . . . . . . . . . . 1 . . . . . . . . . . . 1 . . . . 1 . 1 1 . . . Active Scanning Responses . | . . . . . . . . . . . . . . . . . . . . . . . . . . . . . . . . . . Cargo Convoy Interrupts . | . . . . . . . . . . . . . . . . . . . . . . . . . . . . . . . . . . Stealth | -11 -10 -10 -9 -9 -8 -8 -8 -6 -6 -6 -6 -6 -6 -6 -5 -5 -5 -5 -5 -5 -4 -4 -4 -4 -4 -3 -3 -3 -3 -2 -2 -1 -1 --------- Run | Jun Mat Min Mat Min Mat Sto Rec Fac Gar Fac Ext Cet Arc Hub Fac Was Fac Upp Upp Zhi Pro Fac Upp Upp War Pro Res Qua Sec Res Tes Acc Com Distress Signals 36 | . 4 . 2 . 3 4 1 . . 1 1 2 . 1 . . 1 . . . . 1 . . 1 . 5 . 2 1 . 5 1 Communications Jammed 43 | . . . . . . . . . . . . . . . . . . . . . . . . . . . 17 2 19 . . 3 2 Distress Signals 40 | . . . . . . . . . . . . . . . . . . . . . . . . . . . 17 2 18 . . 1 2 Times Spotted 704 | . 36 5 52 2 22 49 8 2 25 24 48 17 . 27 7 6 27 19 13 . 19 33 13 6 46 29 13 25 38 . 8 31 54 Peak Tracking Total 24 | . 6 3 5 2 4 8 3 2 4 8 5 5 . 9 5 3 12 9 6 . 5 4 7 4 24 10 3 5 7 . 3 8 22 Tactical Retreats 41 | . 2 . 2 . 1 3 . . 3 . . . . 2 . . 2 . 2 . . . 1 1 2 7 2 2 2 . . 4 3 Traps | -11 -10 -10 -9 -9 -8 -8 -8 -6 -6 -6 -6 -6 -6 -6 -5 -5 -5 -5 -5 -5 -4 -4 -4 -4 -4 -3 -3 -3 -3 -2 -2 -1 -1 ------- Run | Jun Mat Min Mat Min Mat Sto Rec Fac Gar Fac Ext Cet Arc Hub Fac Was Fac Upp Upp Zhi Pro Fac Upp Upp War Pro Res Qua Sec Res Tes Acc Com Traps Triggered 28 | . 1 . 1 . . 2 . . 9 1 3 . . 2 1 . . . . . . . . . . . 1 2 . . . 3 2 Indirectly . | . . . . . . . . . . . . . . . . . . . . . . . . . . . . . . . . . . Trap Hack Attempts . | . . . . . . . . . . . . . . . . . . . . . . . . . . . . . . . . . . Triggered . | . . . . . . . . . . . . . . . . . . . . . . . . . . . . . . . . . . Disarmed . | . . . . . . . . . . . . . . . . . . . . . . . . . . . . . . . . . . Reprogrammed . | . . . . . . . . . . . . . . . . . . . . . . . . . . . . . . . . . . Reused . | . . . . . . . . . . . . . . . . . . . . . . . . . . . . . . . . . . Traps Extracted . | . . . . . . . . . . . . . . . . . . . . . . . . . . . . . . . . . . Installed . | . . . . . . . . . . . . . . . . . . . . . . . . . . . . . . . . . . Triggered 8 | . . . . . . . . . . . . . . . . . . 2 . . . . 1 . 5 . . . . . . . . Machines | -11 -10 -10 -9 -9 -8 -8 -8 -6 -6 -6 -6 -6 -6 -6 -5 -5 -5 -5 -5 -5 -4 -4 -4 -4 -4 -3 -3 -3 -3 -2 -2 -1 -1 ---------- Run | Jun Mat Min Mat Min Mat Sto Rec Fac Gar Fac Ext Cet Arc Hub Fac Was Fac Upp Upp Zhi Pro Fac Upp Upp War Pro Res Qua Sec Res Tes Acc Com Machines Disabled 87 | . 1 . 1 . 2 2 . . 6 1 2 1 . 24 . . 2 . . . . 7 . . 1 . 2 7 12 . 5 7 4 Max in Single Turn 14 | . 1 . 1 . 1 1 . . 1 1 1 1 . 14 . . . . . . . 3 . . 1 . 1 1 1 . 2 2 1 Garrison Access 6 | . . . . . . 1 . . . . . . . 1 . . 1 . . . . 1 . . . . 1 . . . . 1 . Garrison Relay 3 | . . . . . . . . . 3 . . . . . . . . . . . . . . . . . . . . . . . . Network Hub 2 | . . . . . . . . . . . . . . 2 . . . . . . . . . . . . . . . . . . . Machines Repaired . | . . . . . . . . . . . . . . . . . . . . . . . . . . . . . . . . . . Machines Sabotaged . | . . . . . . . . . . . . . . . . . . . . . . . . . . . . . . . . . . Overloaded Fab Kills . | . . . . . . . . . . . . . . . . . . . . . . . . . . . . . . . . . . Hacking | -11 -10 -10 -9 -9 -8 -8 -8 -6 -6 -6 -6 -6 -6 -6 -5 -5 -5 -5 -5 -5 -4 -4 -4 -4 -4 -3 -3 -3 -3 -2 -2 -1 -1 --------- Run | Jun Mat Min Mat Min Mat Sto Rec Fac Gar Fac Ext Cet Arc Hub Fac Was Fac Upp Upp Zhi Pro Fac Upp Upp War Pro Res Qua Sec Res Tes Acc Com Machines Accessed 131 | . 10 1 9 . 7 15 7 1 1 2 7 1 1 10 . . 2 1 1 7 . 7 1 1 3 . 7 12 8 . 1 4 4 Terminals 84 | . 7 . 6 . 6 11 5 . 1 2 7 1 . 9 . . 1 . . . . 2 . . . . 4 9 5 . 1 3 4 Fabricators 2 | . . . . . . . . . . . . . . . . . . . . . . 1 . . . . 1 . . . . . . Repair Stations 6 | . 1 . 1 . 1 1 . . . . . . . . . . . . . . . 1 . . . . . 1 . . . . . Recycling Units 7 | . 2 . 1 . . 2 2 . . . . . . . . . . . . . . . . . . . . . . . . . . Scanalyzers 8 | . . . 1 . . . . . . . . . . . . . . . . . . 2 . . . . 1 2 2 . . . . Garrison Access 8 | . . . . . . 1 . 1 . . . . . 1 . . 1 . . . . 1 . . . . 1 . 1 . . 1 . Total Hacks 399 | . 30 1 20 . 19 32 18 1 1 3 14 3 25 30 . . 8 1 1 46 . 24 1 1 9 . 27 42 14 . 1 11 16 Successful 199 | . 10 1 10 . 8 20 11 1 . 1 2 . 25 12 . . 4 1 1 46 . 11 1 1 9 . 5 12 3 . . 1 3 Failed 199 | . 20 . 9 . 11 12 7 . 1 2 12 3 . 18 . . 4 . . . . 13 . . . . 22 30 11 . 1 10 13 Catastrophic 48 | . 3 . 1 . 2 1 1 . 1 1 5 2 . 2 . . . . . . . 1 . . . . 8 12 4 . . 3 1 Database Lockouts 1 | . . . 1 . . . . . . . . . . . . . . . . . . . . . . . . . . . . . . Manual 93 | . 15 . 9 . 5 9 14 . . 2 . 1 . 13 . . 1 . . . . 10 . . . . 13 1 . . . . . Terminals 237 | . 18 . 11 . 16 24 8 . 1 3 14 3 . 27 . . 7 . . . . 12 . . . . 21 36 10 . 1 9 16 Fabricators 4 | . . . . . . . . . . . . . . . . . . . . . . 3 . . . . 1 . . . . . . Repair Stations 24 | . 6 . 5 . 3 4 . . . . . . . . . . . . . . . 2 . . . . . 4 . . . . . Recycling Units 21 | . 6 . 2 . . 3 10 . . . . . . . . . . . . . . . . . . . . . . . . . . Scanalyzers 14 | . . . 2 . . . . . . . . . . . . . . . . . . 6 . . . . 1 2 3 . . . . Garrison Access 14 | . . . . . . 1 . 1 . . . . . 3 . . 1 . . . . 1 . . . . 4 . 1 . . 2 . Terminal Hacks 153 | . 4 1 4 . 5 13 3 . . 1 2 . 25 12 . . 3 1 1 46 . 2 1 1 9 . 4 9 2 . . 1 3 Record 71 | . . . . . . . . . . . . . 25 . . . . . . 34 . . 1 . 8 . . 2 . . . . 1 Part Schematic 8 | . 1 . 1 . . . . . . . . . . 2 . . . . . 4 . . . . . . . . . . . . . Robot Analysis 4 | . . . . . . . . . . . . . . . . . . . . 4 . . . . . . . . . . . . . Prototype ID Bank 15 | . 3 . . . 1 4 1 . . . . . . 1 . . . . . 4 . . . . . . . 1 . . . . . Open Door 11 | . . 1 . . . 4 . . . . 2 . . . . . . 1 1 . . . . 1 1 . . . . . . . . Branch Access Points 6 | . . . 1 . 1 . . . . 1 . . . . . . 1 . . . . 1 . . . . 1 . . . . . . Emergency Access Points 1 | . . . . . . . . . . . . . . . . . . . . . . . . . . . . 1 . . . . . Terminal Index 5 | . . . . . . 1 . . . . . . . . . . . . . . . . . . . . . 1 1 . . 1 1 Alert Level 8 | . . . . . . 1 . . . . . . . 4 . . 1 . . . . . . . . . . 2 . . . . . Unreport Threat 12 | . . . . . 1 3 2 . . . . . . 4 . . . . . . . 1 . . . . 1 . . . . . . Locate Traps 5 | . . . . . 1 . . . . . . . . 1 . . 1 . . . . . . . . . 1 1 . . . . . Maintenance Status 1 | . . . . . . . . . . . . . . . . . . . . . . . . . . . . 1 . . . . . Hauler Manifests 3 | . . . 2 . 1 . . . . . . . . . . . . . . . . . . . . . . . . . . . . Zone Layout 2 | . . . . . . . . . . . . . . . . . . . . . . . . . . . 1 . 1 . . . . Disengage Seal 1 | . . . . . . . . . . . . . . . . . . . . . . . . . . . . . . . . . 1 Fabricator Hacks 2 | . . . . . . . . . . . . . . . . . . . . . . 2 . . . . . . . . . . . Load Schematic 1 | . . . . . . . . . . . . . . . . . . . . . . 1 . . . . . . . . . . . Build 1 | . . . . . . . . . . . . . . . . . . . . . . 1 . . . . . . . . . . . Repair Station Hacks 16 | . 3 . 3 . 3 4 . . . . . . . . . . . . . . . 2 . . . . . 1 . . . . . Scan Component 10 | . 2 . 2 . 2 2 . . . . . . . . . . . . . . . 1 . . . . . 1 . . . . . Repair 6 | . 1 . 1 . 1 2 . . . . . . . . . . . . . . . 1 . . . . . . . . . . . Recycling Unit Hacks 5 | . 1 . . . . 2 2 . . . . . . . . . . . . . . . . . . . . . . . . . . Retrieve Components 5 | . 1 . . . . 2 2 . . . . . . . . . . . . . . . . . . . . . . . . . . Scanalyzer 9 | . . . 2 . . . . . . . . . . . . . . . . . . 3 . . . . 1 2 1 . . . . Insert Component 8 | . . . 1 . . . . . . . . . . . . . . . . . . 3 . . . . 1 2 1 . . . . Analyze 1 | . . . 1 . . . . . . . . . . . . . . . . . . . . . . . . . . . . . . Garrison Access Hacks 4 | . . . . . . 1 . 1 . . . . . . . . 1 . . . . 1 . . . . . . . . . . . Unlock Access 1 | . . . . . . . . 1 . . . . . . . . . . . . . . . . . . . . . . . . . Seal Access 3 | . . . . . . 1 . . . . . . . . . . 1 . . . . 1 . . . . . . . . . . . Unauthorized Hacks 10 | . 2 . 1 . . . 6 . . . . . . . . . . . . . . 1 . . . . . . . . . . . Terminals . | . . . . . . . . . . . . . . . . . . . . . . . . . . . . . . . . . . Fabricators 1 | . . . . . . . . . . . . . . . . . . . . . . 1 . . . . . . . . . . . Liberate 1 | . . . . . . . . . . . . . . . . . . . . . . 1 . . . . . . . . . . . Repair Stations . | . . . . . . . . . . . . . . . . . . . . . . . . . . . . . . . . . . Recycling Units 9 | . 2 . 1 . . . 6 . . . . . . . . . . . . . . . . . . . . . . . . . . Reject 2 | . . . . . . . 2 . . . . . . . . . . . . . . . . . . . . . . . . . . Mask 2 | . . . . . . . 2 . . . . . . . . . . . . . . . . . . . . . . . . . . Tunnel 5 | . 2 . 1 . . . 2 . . . . . . . . . . . . . . . . . . . . . . . . . . Scanalyzers . | . . . . . . . . . . . . . . . . . . . . . . . . . . . . . . . . . . Garrison Access . | . . . . . . . . . . . . . . . . . . . . . . . . . . . . . . . . . . Data Cores Recovered 5 | . . . . . . . . . . . . . . 1 . . . . . . . 1 . . . . 1 1 . . . . 1 Used 1 | . . . . . . . . . . . . . . 1 . . . . . . . . . . . . . . . . . . . Hacking Detections 95 | . 10 . 9 . 7 10 4 . 1 2 6 1 . 10 . . 1 . . . . 5 . . . . 6 7 7 . 1 4 4 Full Trace Events 6 | . . . 1 . 2 . 1 . . . . . . 1 . . . . . . . 1 . . . . . . . . . . . Feedback Events 1 | . . . . . . . 1 . . . . . . . . . . . . . . . . . . . . . . . . . . Corruption 1 | . . . . . . . 1 . . . . . . . . . . . . . . . . . . . . . . . . . . Feedback Blocked . | . . . . . . . . . . . . . . . . . . . . . . . . . . . . . . . . . . Robot Schematics Acquired . | . . . . . . . . . . . . . . . . . . . . . . . . . . . . . . . . . . Robots Built . | . . . . . . . . . . . . . . . . . . . . . . . . . . . . . . . . . . Authchips . | . . . . . . . . . . . . . . . . . . . . . . . . . . . . . . . . . . Time . | . . . . . . . . . . . . . . . . . . . . . . . . . . . . . . . . . . Total Robot Build Rating . | . . . . . . . . . . . . . . . . . . . . . . . . . . . . . . . . . . Part Schematics Acquired 8 | . 1 . 1 . . . . . . . . . . 2 . . . . . 4 . . . . . . . . . . . . . Parts Built 1 | . . . . . . . . . . . . . . . . . . . . . . 1 . . . . . . . . . . . Authchips . | . . . . . . . . . . . . . . . . . . . . . . . . . . . . . . . . . . Time 51 | . . . . . . . . . . . . . . . . . . . . . . 51 . . . . . . . . . . . Total Part Build Rating 1 | . . . . . . . . . . . . . . . . . . . . . . 1 . . . . . . . . . . . Parts Repaired 6 | . 1 . 1 . 1 2 . . . . . . . . . . . . . . . 1 . . . . . . . . . . . Time 238 | . 26 . 26 . 26 52 . . . . . . . . . . . . . . . 108 . . . . . . . . . . . Parts Recycled . | . . . . . . . . . . . . . . . . . . . . . . . . . . . . . . . . . . Recycled Matter . | . . . . . . . . . . . . . . . . . . . . . . . . . . . . . . . . . . Retrieved Matter . | . . . . . . . . . . . . . . . . . . . . . . . . . . . . . . . . . . Retrieved Components 23 | . 9 . . . . 10 4 . . . . . . . . . . . . . . . . . . . . . . . . . . Parts Scanalyzed 1 | . . . 1 . . . . . . . . . . . . . . . . . . . . . . . . . . . . . . Part Schematics Acquired . | . . . . . . . . . . . . . . . . . . . . . . . . . . . . . . . . . . Parts Damaged . | . . . . . . . . . . . . . . . . . . . . . . . . . . . . . . . . . . Bothacking | -11 -10 -10 -9 -9 -8 -8 -8 -6 -6 -6 -6 -6 -6 -6 -5 -5 -5 -5 -5 -5 -4 -4 -4 -4 -4 -3 -3 -3 -3 -2 -2 -1 -1 ------------ Run | Jun Mat Min Mat Min Mat Sto Rec Fac Gar Fac Ext Cet Arc Hub Fac Was Fac Upp Upp Zhi Pro Fac Upp Upp War Pro Res Qua Sec Res Tes Acc Com Used RIF Installer . | . . . . . . . . . . . . . . . . . . . . . . . . . . . . . . . . . . Robots Hacked 1 | . . . . . . . . . . . . . . . . . . . . . . . . . . . . . . . . . 1 Non-combat . | . . . . . . . . . . . . . . . . . . . . . . . . . . . . . . . . . . Combat . | . . . . . . . . . . . . . . . . . . . . . . . . . . . . . . . . . . Robot Hacks Applied . | . . . . . . . . . . . . . . . . . . . . . . . . . . . . . . . . . . Manual 1 | . . . . . . . . . . . . . . . . . . . . . . . . . . . . . . . . . 1 Relay Couplers Released 20 | . . . . . . . . . 13 . . . . 1 . . . . . . . . . . . . 2 . . . . 4 . Machine Destruction 20 | . . . . . . . . . 13 . . . . 1 . . . . . . . . . . . . 2 . . . . 4 . Fabnet Peak Effective % . | . . . . . . . . . . . . . . . . . . . . . . . . . . . . . . . . . . Robots Rewired 17 | . . . . . . . 1 . . . 10 . . . . . . 2 . . . . 2 . . 2 . . . . . . . Allies Hacked 1 | . . . . . . . . . . . . . . . . . . 1 . . . . . . . . . . . . . . . Hacks Repelled . | . . . . . . . . . . . . . . . . . . . . . . . . . . . . . . . . . . Allies | -11 -10 -10 -9 -9 -8 -8 -8 -6 -6 -6 -6 -6 -6 -6 -5 -5 -5 -5 -5 -5 -4 -4 -4 -4 -4 -3 -3 -3 -3 -2 -2 -1 -1 -------- Run | Jun Mat Min Mat Min Mat Sto Rec Fac Gar Fac Ext Cet Arc Hub Fac Was Fac Upp Upp Zhi Pro Fac Upp Upp War Pro Res Qua Sec Res Tes Acc Com Total Allies 72 | . . 1 . . . 2 1 . . 12 23 5 . . . 19 . 2 . . . 3 2 . . 2 . . . . . . . Largest Group 18 | . . 1 . . . 2 1 1 1 6 14 14 14 10 . 18 11 2 . . . 3 2 2 1 2 2 . . . . . . Highest-Rated Group 827 | . . 31 . . . 62 27 27 27 140 484 827 827 611 . 638 385 59 . . . 141 97 97 48 94 94 . . . . . . Highest-Rated Ally 159 | . . 31 . . . 31 27 27 27 31 159 159 143 96 . 50 46 30 . . . 47 49 49 48 47 47 . . . . . . Total Orders 16 | . . . . . . . . . . . . . . . . . . . 2 . 1 . 2 2 1 1 2 . 1 . . 4 . STAY 1 | . . . . . . . . . . . . . . . . . . . . . . . . . 1 . . . . . . . . EXPLORE 8 | . . . . . . . . . . . . . . . . . . . 2 . . . 1 . . . 1 . . . . 4 . RETURN 7 | . . . . . . . . . . . . . . . . . . . . . 1 . 1 2 . 1 1 . 1 . . . . Ally Attacks 496 | . . . . . . 16 . . . 38 121 70 . 98 . 69 47 5 . . . 16 . . 1 . 15 . . . . . . Total Damage 10872 | . . . . . . 275 . . . 576 2489 1509 . 2900 . 1356 944 20 . . . 388 . . 38 . 377 . . . . . . Kills 62 | . . . . . . . . . . 4 14 9 . 19 . 1 13 . . . . . . . . . 2 . . . . . . Allies Corrupted 4 | . . . . . . . . . . . 2 . . 2 . . . . . . . . . . . . . . . . . . . Allies Melted 3 | . . . . . . . . . . . . . . . . . 1 . . . . . . . . 2 . . . . . . . Intel | -11 -10 -10 -9 -9 -8 -8 -8 -6 -6 -6 -6 -6 -6 -6 -5 -5 -5 -5 -5 -5 -4 -4 -4 -4 -4 -3 -3 -3 -3 -2 -2 -1 -1 ------- Run | Jun Mat Min Mat Min Mat Sto Rec Fac Gar Fac Ext Cet Arc Hub Fac Was Fac Upp Upp Zhi Pro Fac Upp Upp War Pro Res Qua Sec Res Tes Acc Com Robot Analysis Total 4 | . . . . . . . . . . . . . . . . . . . . 4 . . . . . . . . . . . . . Derelict Logs Recovered 11 | . . 2 . 1 . . . . . . . . . . . . . 2 2 . 1 . 1 2 . . . . . . . . . Drone Launches 25 | . . . . . . . . . . . . . . . . . . . 4 . 1 . 3 6 . 3 3 . 1 . . 4 . Drone Recoveries 18 | . . . . . . . . . . . . . . . . . . . 1 . 1 . 3 6 . 3 2 . 1 . . 1 . Exploration | -11 -10 -10 -9 -9 -8 -8 -8 -6 -6 -6 -6 -6 -6 -6 -5 -5 -5 -5 -5 -5 -4 -4 -4 -4 -4 -3 -3 -3 -3 -2 -2 -1 -1 ------------- Run | Jun Mat Min Mat Min Mat Sto Rec Fac Gar Fac Ext Cet Arc Hub Fac Was Fac Upp Upp Zhi Pro Fac Upp Upp War Pro Res Qua Sec Res Tes Acc Com Turns Passed 48873 | 183 3418 2443 3398 1254 1704 2529 7079 124 1347 527 1182 224 2646 668 127 1116 379 1081 1071 909 3765 1458 1275 1141 775 1583 824 1200 1257 169 213 899 905 Spaces Moved 29351 | 112 1054 633 1032 507 544 857 2695 110 635 476 1060 204 65 982 167 499 566 1570 902 306 1814 813 1580 1512 856 1734 905 1154 1469 74 337 1176 951 Core 3 | 3 . . . . . . . . . . . . . . . . . . . . . . . . . . . . . . . . . Treads 15359 | . 891 633 1032 507 544 857 1625 . . . 241 204 65 982 167 376 . . . 23 . . 1550 1512 856 1734 905 577 . . . . 78 Legs 718 | . . . . . . . . . 15 189 . . . . . . . . . . . 484 30 . . . . . . . . . . Wheels 555 | 109 163 . . . . . 89 . 194 . . . . . . . . . . . . . . . . . . . . . . . . Hover 7097 | . . . . . . . 956 110 426 280 819 . . . . . . . . . . . . . . . . 577 1469 74 337 1176 873 Flight 5619 | . . . . . . . 25 . . 7 . . . . . 123 566 1570 902 283 1814 329 . . . . . . . . . . . Fastest Speed 40 | 50 100 320 240 240 240 240 86 86 94 47 42 42 42 42 42 42 56 56 56 40 148 114 63 63 63 63 63 47 51 47 51 51 51 Average Speed 112 | 98 276 320 240 240 240 240 190 97 135 80 45 42 42 42 42 49 56 56 56 110 151 141 64 63 63 63 63 77 58 47 51 51 51 Slowest Speed 360 | 100 320 320 240 240 320 240 360 171 239 94 47 42 42 42 42 102 56 56 56 148 217 217 117 63 63 63 63 107 107 51 51 51 61 Overloaded Moves 121 | . . . . . . . . . . . . . . . . . . . . . . . . . . . . 48 . 73 . . . Propulsion Burnouts . | . . . . . . . . . . . . . . . . . . . . . . . . . . . . . . . . . . Robots Hopped . | . . . . . . . . . . . . . . . . . . . . . . . . . . . . . . . . . . Cave-ins Triggered . | . . . . . . . . . . . . . . . . . . . . . . . . . . . . . . . . . . Exploration Rate (%) 61 | 6 96 99 76 90 45 95 98 5 55 15 89 73 67 59 6 96 18 97 99 62 96 14 99 97 90 98 18 91 49 3 21 38 29 Regions Visited 33 Branch Regions 20 Pre-discovered Areas 11 | . 2 . 1 1 . . 2 . . . . . . . . . . 2 . 3 . . . . . . . . . . . . . Known Exits Taken 12 | . . . 1 . 1 . . 1 . 1 . . . . . . 1 . . . . 1 . . . 1 1 . 1 1 1 1 . Unknown Exits Taken 18 | 1 1 1 . 1 . 1 1 . . . 1 1 1 1 . . . 1 1 1 1 . 1 1 1 . . 1 . . . . . Scrap Searched 20 | . . 2 . 1 . . . . . . . . . . . . . 3 5 . 1 . 1 2 . 5 . . . . . . . Spaces Dug 392 | . 2 7 . . . 2 . . 23 13 26 1 . 21 . . 6 124 4 . 36 6 . 26 10 24 15 6 12 . 6 14 8 Terrain Destroyed 1582 | . 17 7 49 . . 3 2 4 39 17 153 10 2 372 7 6 13 161 25 . 130 61 26 34 37 111 42 51 66 . 13 74 50 Melee 7 | . . . . . . 2 . . . . 1 . . 4 . . . . . . . . . . . . . . . . . . . Projectile 740 | . 2 . . . . 1 2 . 10 17 50 10 2 31 7 6 13 113 25 . 15 39 26 15 29 55 42 27 66 . 13 74 50 AOE 835 | . 15 7 49 . . . . 4 29 . 102 . . 337 . . . 48 . . 115 22 . 19 8 56 . 24 . . . . . Terrain Rammed . | . . . . . . . . . . . . . . . . . . . . . . . . . . . . . . . . . . Walls Destroyed . | . . . . . . . . . . . . . . . . . . . . . . . . . . . . . . . . . . Machines Disabled . | . . . . . . . . . . . . . . . . . . . . . . . . . . . . . . . . . . Actions | -11 -10 -10 -9 -9 -8 -8 -8 -6 -6 -6 -6 -6 -6 -6 -5 -5 -5 -5 -5 -5 -4 -4 -4 -4 -4 -3 -3 -3 -3 -2 -2 -1 -1 --------- Run | Jun Mat Min Mat Min Mat Sto Rec Fac Gar Fac Ext Cet Arc Hub Fac Was Fac Upp Upp Zhi Pro Fac Upp Upp War Pro Res Qua Sec Res Tes Acc Com Total 43325 | 155 1380 1045 1721 524 803 1172 4582 124 1033 577 1670 326 2681 1185 209 1333 615 1693 1436 861 2806 1054 1825 1683 1072 2192 1137 1433 1775 207 364 1391 1261 Wait 10765 | . 129 394 464 1 102 105 1682 3 225 30 360 67 2608 111 12 770 30 14 490 514 951 104 152 151 129 352 160 187 152 129 6 91 90 Move 29319 | 111 1053 632 1031 506 543 856 2694 110 633 475 1059 203 64 981 167 498 565 1569 901 305 1813 812 1579 1511 855 1733 904 1153 1468 73 336 1175 951 Hop . | . . . . . . . . . . . . . . . . . . . . . . . . . . . . . . . . . . Pick Up 306 | 10 36 6 31 1 21 15 36 3 9 3 12 11 2 11 5 3 1 3 4 6 . 6 3 . 9 4 5 9 9 1 3 9 19 Fast Attach 116 | 5 3 . 1 . 8 6 . 1 3 2 4 1 . 6 . 3 2 1 . 5 1 14 4 . 9 5 6 8 12 . . 2 4 Attach 53 | 2 3 . 6 . 6 2 2 2 2 . 2 . 1 1 2 . 1 . 1 1 . 2 1 . 1 1 2 1 2 2 1 3 3 Detach 11 | . . . . . . . 1 . 1 1 2 . . . . . . . . . . . 1 . . 1 . 1 . 1 . . 2 Swap 241 | 2 21 2 27 . 13 25 4 1 7 . 4 1 2 9 1 . 1 5 4 1 10 1 4 6 6 7 9 8 21 1 1 3 34 Drop 359 | . 21 6 32 1 23 27 58 2 10 4 12 11 2 5 1 6 2 4 3 10 1 16 8 . 18 9 9 15 16 . 2 9 16 Fire 1897 | 25 100 5 124 5 85 127 84 2 105 62 115 31 2 57 21 53 13 84 33 19 30 98 41 15 45 73 42 51 95 . 15 98 142 Melee 12 | . . . . . . 3 . . . . 4 1 . 4 . . . . . . . . . . . . . . . . . . . Ram . | . . . . . . . . . . . . . . . . . . . . . . . . . . . . . . . . . . Kick 1 | . . . . . . . . . . . . . . . . . . . . . . 1 . . . . . . . . . . . Crush 33 | . 14 . 5 10 2 2 . . . . . . . . . . . . . . . . . . . . . . . . . . . Escape Stasis 51 | . . . . . . 4 . . 38 . 8 . . . . . . . . . . . . . . . . . . . . 1 . Rewire 161 | . . . . . . . 21 . . . 88 . . . . . . 13 . . . . 32 . . 7 . . . . . . . Trap . | . . . . . . . . . . . . . . . . . . . . . . . . . . . . . . . . . . Miscellaneous . | . . . . . . . . . . . . . . . . . . . . . . . . . . . . . . . . . . Route ------- -11/Junkyard -10/Materials (discovered 4 exits: *Mat x3 / *Min) -10/Mines (discovered 3 exits: *Mat x2 / [*Exi]) -9/Materials (discovered 3 exits: *Mat x2 / *Min) -9/Mines (discovered 2 exits: *Mat x2) -8/Materials (discovered 3 exits: [*Fac] / *Sto x2) -8/Storage (discovered 2 exits: [*Fac] / *Rec) -8/Recycling -6/Factory -6/Garrison (discovered 2 exits: *Fac x2) -6/Factory (discovered 4 exits: Low x2 / *Ext x2) -6/Extension (discovered 2 exits: [*Fac] / *Cet) -6/Cetus (discovered 2 exits: [*Fac] / *Arc) -6/Archives -6/Hub_04(d) (discovered 2 exits: [*Fac x2]) -5/Factory -5/Waste -5/Factory (discovered 2 exits: *Upp x2) -5/Upper Caves -5/Upper Caves (discovered 2 exits: *Fac / *Zhi) -5/Zhirov -4/Proximity Caves -4/Factory (discovered 5 exits: *Res x2 / *Upp x2 / Arm) -4/Upper Caves (discovered 2 exits: *Upp / *War) -4/Upper Caves (discovered 2 exits: *Res / *War) -4/Warlord -3/Proximity Caves -3/Research (discovered 2 exits: *Qua x2) -3/Quarantine (discovered 2 exits: *Res / *Sec) -3/Section 7 -2/Research -2/Testing -1/Access -1/Command Free Derelict Territories History --------- Turn | Location | Event 22 | -11/Junkyard | Discovered new exit (range 16) 184 | -11/Junkyard | Entered Materials 327 | -10/Materials | Build established: Mutant 438 | -10/Materials | Discovered new exit (range 14) 1500 | -10/Materials | Discovered new exit (range 10) 1918 | -10/Materials | Discovered new exit (range 11) 2022 | -10/Materials | Repaired Lgt. Treads 2068 | -10/Materials | Discovered new exit (range 16) 3602 | -10/Materials | Entered Mines 3706 | -10/Mines | Core integrity fell below 50% 3893 | -10/Mines | Found a damaged Exp. Sensor Array with a note attached 3900 | -10/Mines | Found Prototype Device 3969 | -10/Mines | Learned 2 Materials zone layouts 4463 | -10/Mines | Discovered new exit (range 14) 4466 | -10/Mines | Discovered new exit (range 11) 4492 | -10/Mines | Learned Materials terminal intel 4755 | -10/Mines | Met a Derelict who couldn't figure out how to use a Trap Extractor 5292 | -10/Mines | Received a Mining Laser from a helpful Derelict 5571 | -10/Mines | A weapon hastily lodged in a ceiling crevice suddenly fell to the ground 5891 | -10/Mines | Deemed a non-threat by the Exiles lab entrance 5894 | -10/Mines | Discovered new exit (range 5) 6045 | -10/Mines | Entered Materials 6045 | -9/Materials | Evolved 2 slots: Propulsion x1, Utility x1 6047 | -9/Materials | Loaded intel: 12 terminal locations 6079 | -9/Materials | Identified Exp. Sensor Array 6302 | -9/Materials | Identified exit to Mines 6455 | -9/Materials | Repaired Lgt. Treads 7343 | -9/Materials | Central database locked down 7348 | -9/Materials | Discovered new exit (range 15) 7769 | -9/Materials | Build established: Scavenger-Mutant 8018 | -9/Materials | Discovered new exit (range 13) 8445 | -9/Materials | First assault squad dispatched 9443 | -9/Materials | Entered Mines 9496 | -9/Mines | Discovered new exit (range 7) 9543 | -9/Mines | Met a Derelict bent on vengeance 9581 | -9/Mines | Received a Rocket Launcher from a helpful Derelict 10085 | -9/Mines | Discovered new exit (range 8) 10697 | -9/Mines | Entered Materials 10697 | -8/Materials | Evolved 2 slots: Utility x2 10704 | -8/Materials | Identified exit to Storage 10911 | -8/Materials | Lost 3 parts (2n1u) 11317 | -8/Materials | Repaired Lgt. Treads 12105 | -8/Materials | Discovered new exit (range 6) 12273 | -8/Materials | Garrison activated, responded to threat 12401 | -8/Materials | Entered Storage 12418 | -8/Storage | Build established: Mutant 13016 | -8/Storage | Build established: Scavenger-Mutant 13430 | -8/Storage | Repaired Lgt. Treads 13457 | -8/Storage | Repaired Lgt. Treads 13798 | -8/Storage | Used back door to open Recycling access 13798 | -8/Storage | Discovered new exit (range 5) 13974 | -8/Storage | Discovered new exit (range 16) 14342 | -8/Storage | Build established: Mutant 14612 | -8/Storage | Met a pair of Derelict thieves 14773 | -8/Storage | Destroyed 7 combat bots 14930 | -8/Storage | Entered Recycling 15425 | -8/Recycling | Discovered new exit (range 16) 18445 | -8/Recycling | Found Scrap Engine 19745 | -8/Recycling | Build established: Construct 22009 | -8/Recycling | Entered Factory 22009 | -6/Factory | Accompanied by 1 ally 22009 | -6/Factory | Evolved 4 slots: Power x1, Propulsion x1, Utility x1, Weapon x1 22133 | -6/Factory | Identified exit to Garrison 22133 | -6/Factory | Entered Garrison 22133 | -6/Garrison | Accompanied by 1 ally 22200 | -6/Garrison | Triggered checkpoint 22309 | -6/Garrison | Garrison Relay disabled 22521 | -6/Garrison | Spotted B-75 Beast 22524 | -6/Garrison | Triggered checkpoint 22629 | -6/Garrison | Destroyed B-75 Beast 23136 | -6/Garrison | Discovered new exit (range 11) 23165 | -6/Garrison | Triggered checkpoint 23227 | -6/Garrison | Garrison Relay disabled 23271 | -6/Garrison | Attempted to access garrison exit controls, blocked by remote lockdown 23296 | -6/Garrison | Triggered checkpoint 23387 | -6/Garrison | Discovered new exit (range 13) 23417 | -6/Garrison | Triggered checkpoint 23459 | -6/Garrison | Garrison Relay disabled 23480 | -6/Garrison | Entered Factory 23682 | -6/Factory | Spotted B-75 Beast 23687 | -6/Factory | Identified exit to Lower Caves 23687 | -6/Factory | Identified exit to Extension 23830 | -6/Factory | First assault squad dispatched 24007 | -6/Factory | Entered Extension 24054 | -6/Extension | Rescued a captive Derelict 24056 | -6/Extension | Rescued a captive Derelict 24263 | -6/Extension | Rescued a captive Derelict 24264 | -6/Extension | Rescued a captive Derelict 24542 | -6/Extension | Build established: Commander-Construct 24662 | -6/Extension | Spotted B-75 Beast 24674 | -6/Extension | Allies destroyed B-75 Beast 24695 | -6/Extension | Spotted B-75 Beast 24702 | -6/Extension | Destroyed B-75 Beast 24707 | -6/Extension | Disrupted transfer network 24762 | -6/Extension | Rescued a captive Derelict 24762 | -6/Extension | Rescued a captive Derelict 24792 | -6/Extension | Rescued a captive Derelict 24821 | -6/Extension | Rescued a captive Derelict 24829 | -6/Extension | Rescued a captive Derelict 24857 | -6/Extension | Rescued A7 24962 | -6/Extension | Rescued a captive Derelict 24983 | -6/Extension | Rescued a captive Derelict 24985 | -6/Extension | Rescued a captive Derelict 25009 | -6/Extension | Discovered new exit (range 10) 25009 | -6/Extension | Discovered new exit (range 6) 25189 | -6/Extension | Entered Cetus 25189 | -6/Cetus | Accompanied by 12 allies (A7) 25194 | -6/Cetus | Acquired a Cetus Manufacturing Module code from A7 25195 | -6/Cetus | Spotted Cetus Guard 25197 | -6/Cetus | Spotted Cetus Guard 25199 | -6/Cetus | Spotted Cetus Guard 25205 | -6/Cetus | Allies destroyed Cetus Guard 25206 | -6/Cetus | Spotted Cetus Guard 25214 | -6/Cetus | Allies destroyed Cetus Guard 25214 | -6/Cetus | Allies destroyed Cetus Guard 25223 | -6/Cetus | Allies destroyed Cetus Guard 25249 | -6/Cetus | Started Cetus Manufacturing Module 25259 | -6/Cetus | Escorted A7 to Cetus Mainframe 25274 | -6/Cetus | Manufactured an Enhanced Grunt 25291 | -6/Cetus | Discovered new exit (range 16) 25299 | -6/Cetus | Manufactured an Enhanced Grunt 25299 | -6/Cetus | Spotted Cetus Guard 25300 | -6/Cetus | Spotted Cetus Guard 25302 | -6/Cetus | Spotted Cetus Guard 25306 | -6/Cetus | Destroyed Cetus Guard 25307 | -6/Cetus | Spotted Cetus Guard 25313 | -6/Cetus | Allies destroyed Cetus Guard 25315 | -6/Cetus | Destroyed Cetus Guard 25319 | -6/Cetus | Destroyed Cetus Guard 25322 | -6/Cetus | Discovered new exit (range 15) 25324 | -6/Cetus | Manufactured an Enhanced Grunt 25324 | -6/Cetus | Met Revision 17 25349 | -6/Cetus | Manufactured an Enhanced Grunt 25374 | -6/Cetus | Manufactured an Enhanced Grunt 25413 | -6/Cetus | Entered Archives 25413 | -6/Archives | Accompanied by 14 allies (A7) 25422 | -6/Archives | Received a hacking code to weaken MAIN.C 28022 | -6/Archives | Met Zhirov 28025 | -6/Archives | Discovered new exit (range 16) 28027 | -6/Archives | Read partially decrypted archive contents 28028 | -6/Archives | Reinforcements dispatched to Archives 28059 | -6/Archives | Entered Hub_04(d) 28059 | -6/Hub_04(d) | Accompanied by 10 allies 28062 | -6/Hub_04(d) | Discovered new exit (range 16) 28409 | -6/Hub_04(d) | First assault squad dispatched 28503 | -6/Hub_04(d) | Discovered new exit (range 8) 28599 | -6/Hub_04(d) | Network Hub disabled 28604 | -6/Hub_04(d) | Network Hub disabled 28619 | -6/Hub_04(d) | Spotted Lightning 28621 | -6/Hub_04(d) | Spotted Lightning 28635 | -6/Hub_04(d) | Destroyed Lightning 28643 | -6/Hub_04(d) | Destroyed Lightning 28649 | -6/Hub_04(d) | Found Prototype Device 28650 | -6/Hub_04(d) | Identified Exp. Phase Shifter 28659 | -6/Hub_04(d) | Found Prototype Processor 28661 | -6/Hub_04(d) | Found Exp. Phase Shifter 28675 | -6/Hub_04(d) | Spotted Lightning 28698 | -6/Hub_04(d) | Destroyed Lightning 28727 | -6/Hub_04(d) | Entered Factory 28727 | -5/Factory | Evolved 2 slots: Propulsion x1, Utility x1 28763 | -5/Factory | Spotted B-75 Beast 28775 | -5/Factory | Destroyed B-75 Beast 28783 | -5/Factory | Discovered new exit (range 16) 28854 | -5/Factory | Sucked down chute 28854 | -5/Factory | Entered Waste 28882 | -5/Waste | Spotted C-40 Crusher 28906 | -5/Waste | Destroyed C-40 Crusher 28908 | -5/Waste | Build established: Construct 28918 | -5/Waste | Spotted C-40 Crusher 28918 | -5/Waste | Spotted C-40 Crusher 28934 | -5/Waste | Destroyed C-40 Crusher 28935 | -5/Waste | Destroyed C-40 Crusher 28965 | -5/Waste | Warlord forces began an assault 28984 | -5/Waste | Found Prototype Device 28984 | -5/Waste | Identified Exp. Shield Generator 29006 | -5/Waste | Spotted C-40 Crusher 29010 | -5/Waste | Destroyed C-40 Crusher 29021 | -5/Waste | Discovered new exit (range 16) 29026 | -5/Waste | Spotted C-40 Crusher 29034 | -5/Waste | Allies destroyed C-40 Crusher 29075 | -5/Waste | Spotted C-40 Crusher 29095 | -5/Waste | Destroyed C-40 Crusher 29970 | -5/Waste | Entered Factory 29970 | -5/Factory | Accompanied by 11 allies 30034 | -5/Factory | Identified exit to Upper Caves 30270 | -5/Factory | First assault squad dispatched 30349 | -5/Factory | Entered Upper Caves 30366 | -5/Upper Caves | Attracted the attention of an 0b10 outpost 30411 | -5/Upper Caves | Destroyed 9 combat bots 30462 | -5/Upper Caves | Met a Warlord Commander 30463 | -5/Upper Caves | Learned location of Warlord (-4) 30464 | -5/Upper Caves | Found Encrypted Comm Array 30514 | -5/Upper Caves | Attracted the attention of an 0b10 checkpoint 30530 | -5/Upper Caves | Learned 4 Factory zone layouts 30775 | -5/Upper Caves | Discovered new exit (range 6) 30918 | -5/Upper Caves | Spotted B-75 Beast 31430 | -5/Upper Caves | Entered another Upper Caves area 31448 | -5/Upper Caves | Attracted the attention of an 0b10 checkpoint 31506 | -5/Upper Caves | Discovered new exit (range 3) 31834 | -5/Upper Caves | Learned location of 1 exit from Factory 31936 | -5/Upper Caves | Discovered new exit (range 30) 32061 | -5/Upper Caves | Learned Factory stockpile data 32244 | -5/Upper Caves | Encountered a Warlord checkpoint 32501 | -5/Upper Caves | Entered Zhirov 32501 | -5/Zhirov | Discovered new exit (range 3) 32522 | -5/Zhirov | Learned location of Quarantine (-3) 32522 | -5/Zhirov | Learned location of Command (-1) 32543 | -5/Zhirov | Found Alien Artifact 32543 | -5/Zhirov | Identified Integrated Dissipator 32543 | -5/Zhirov | Installed Integrated Dissipator, increased core heat dissipation (+20) 33219 | -5/Zhirov | Found Alien Artifact 33410 | -5/Zhirov | Entered Proximity Caves 33561 | -4/Proximity Caves | Learned Research emergency access door positions 34020 | -4/Proximity Caves | Discovered new exit (range 7) 34214 | -4/Proximity Caves | Attracted the attention of an 0b10 checkpoint 34431 | -4/Proximity Caves | Spotted B-86 Titan 34640 | -4/Proximity Caves | Destroyed B-86 Titan 37175 | -4/Proximity Caves | Entered Factory 37175 | -4/Factory | Evolved 2 slots: Power x1, Propulsion x1 37176 | -4/Factory | Identified exit to Upper Caves 37177 | -4/Factory | Identified exit to Research 37206 | -4/Factory | Identified exit to Armory 37674 | -4/Factory | Identified Transdimensional Reconstructor 37674 | -4/Factory | Identified Exp. Targeting Computer 37897 | -4/Factory | Discovered exit to Research (range 9) 37962 | -4/Factory | Repaired Centrium Medium Armor Plating? 38191 | -4/Factory | Spotted B-86 Titan 38405 | -4/Factory | Fabricated Hcp. Storage Unit (x1) 38633 | -4/Factory | Entered Upper Caves 38799 | -4/Upper Caves | Encountered a Warlord checkpoint 38809 | -4/Upper Caves | A Derelict revealed a hidden shortcut to "reach the base" 39207 | -4/Upper Caves | Attracted the attention of an 0b10 outpost 39273 | -4/Upper Caves | Discovered new exit (range 10) 39722 | -4/Upper Caves | Learned 8 Research zone layouts 39908 | -4/Upper Caves | Entered another Upper Caves area 39908 | -4/Upper Caves | Accompanied by 2 allies 39919 | -4/Upper Caves | Discovered exit to Research (range 4) 40084 | -4/Upper Caves | Learned Research security intel 40135 | -4/Upper Caves | Encountered a Warlord checkpoint 40716 | -4/Upper Caves | Discovered new exit (range 11) 41049 | -4/Upper Caves | Entered Warlord 41049 | -4/Warlord | Accompanied by 1 ally 41076 | -4/Warlord | System corruption cleaned by Quarantine Array 41174 | -4/Warlord | Found Prototype Device 41174 | -4/Warlord | Identified Minesniffer Drone Bay 41413 | -4/Warlord | Warlord's base attacked by MAIN.C 41429 | -4/Warlord | Found Prototype Energy Gun 41429 | -4/Warlord | Identified Vortex Rail 41437 | -4/Warlord | Found Vortex Rail 41440 | -4/Warlord | Found Vortex Rail 41443 | -4/Warlord | Found Vortex Rail 41497 | -4/Warlord | Met Warlord 41506 | -4/Warlord | Found Prototype Device 41506 | -4/Warlord | Identified Exp. Focal Shield 41519 | -4/Warlord | Found Prototype Device 41519 | -4/Warlord | Identified Exp. Cloaking Device 41678 | -4/Warlord | Warlord forces counterattacked 41696 | -4/Warlord | Destroyed 7 combat bots 41756 | -4/Warlord | Spotted Executioner 41813 | -4/Warlord | Spotted Striker 41817 | -4/Warlord | Discovered new exit (range 13) 41824 | -4/Warlord | Entered Proximity Caves 41970 | -3/Proximity Caves | Derelict sapper outpost attacked 42285 | -3/Proximity Caves | Attracted the attention of an 0b10 outpost 42394 | -3/Proximity Caves | Destroyed 11 combat bots 42440 | -3/Proximity Caves | Discovered exit to Research (range 8) 43407 | -3/Proximity Caves | Entered Research 43407 | -3/Research | Accompanied by 2 allies 43407 | -3/Research | Evolved 2 slots: Utility x2 43464 | -3/Research | Identified exit to Quarantine 43607 | -3/Research | Revision forces began assault on 0b10 43620 | -3/Research | Spotted B-86 Titan 43681 | -3/Research | Met up with Revision 17++ 43711 | -3/Research | Build established: Scavenger-Construct 44107 | -3/Research | Research terminal network offline 44231 | -3/Research | Entered Quarantine 44312 | -3/Quarantine | Cryocooling Duct disabled 44326 | -3/Quarantine | Found Alien Artifact 44327 | -3/Quarantine | Ambient heat levels rising (+20) 44327 | -3/Quarantine | Non-combat units ordered to evacuate 44401 | -3/Quarantine | Build established: Construct 44464 | -3/Quarantine | Identified Core Reset Matrix 44540 | -3/Quarantine | Found Alien Artifact 44706 | -3/Quarantine | Found Alien Artifact 44706 | -3/Quarantine | Identified Phase Redirector 44722 | -3/Quarantine | Spotted Alpha 7 44737 | -3/Quarantine | Destroyed Alpha 7 44780 | -3/Quarantine | Destroyed 8 combat bots 44848 | -3/Quarantine | Found Prototype Device 44848 | -3/Quarantine | Identified Adv. Kinecellerator 44857 | -3/Quarantine | Found Adv. Kinecellerator 44925 | -3/Quarantine | Found Transdimensional Reconstructor 44930 | -3/Quarantine | Found Alien Artifact 45207 | -3/Quarantine | Discovered new exit (range 14) 45231 | -3/Quarantine | First assault squad dispatched 45314 | -3/Quarantine | Spotted Fortress 45373 | -3/Quarantine | Discovered new exit (range 6) 45431 | -3/Quarantine | Entered Section 7 45472 | -3/Section 7 | Found Alien Artifact 45485 | -3/Section 7 | Found Integrated Dissipator 45485 | -3/Section 7 | Installed Integrated Dissipator, increased core heat dissipation (+20) 45503 | -3/Section 7 | Found Integrated Dissipator 45503 | -3/Section 7 | Installed Integrated Dissipator, increased core heat dissipation (+20) 45540 | -3/Section 7 | Identified Integrity Redistributor 45631 | -3/Section 7 | Found Integrated Dissipator 45631 | -3/Section 7 | Installed Integrated Dissipator, increased core heat dissipation (+20) 45643 | -3/Section 7 | Discovered new exit (range 11) 45660 | -3/Section 7 | Found Integrated Dissipator 45660 | -3/Section 7 | Installed Integrated Dissipator, increased core heat dissipation (+20) 46165 | -3/Section 7 | Garrison activated, responded to threat 46368 | -3/Section 7 | Spotted S7 Guard 46459 | -3/Section 7 | System corruption reached 10% 46507 | -3/Section 7 | Destroyed S7 Guard 46521 | -3/Section 7 | Found Prototype Protection 46594 | -3/Section 7 | Found Alien Artifact 46619 | -3/Section 7 | Found Unknown Device 46619 | -3/Section 7 | Identified Antimissile System 46626 | -3/Section 7 | Found Antimissile System 46688 | -3/Section 7 | Identified exit to Research 46688 | -3/Section 7 | Entered Research 46688 | -2/Research | Warlord forces began assault on 0b10 46688 | -2/Research | Evolved 2 slots: Utility x1, Weapon x1 46690 | -2/Research | Identified Hvy. Regenerative Plating 46712 | -2/Research | Discovered new exit (range 10) 46713 | -2/Research | Distinguished unit "Grunt Murderers" dispatched to help 46717 | -2/Research | Identified exit to Testing 46798 | -2/Research | Research machine network offline 46857 | -2/Research | Entered Testing 46924 | -2/Testing | Discovered new exit (range 16) 46977 | -2/Testing | Found Prototype Hackware 47059 | -2/Testing | Identified Core Regenerator 47059 | -2/Testing | Used Core Regenerator, restored core integrity (+0) 47062 | -2/Testing | Found Prototype Energy Cannon 47070 | -2/Testing | Identified exit to Access 47070 | -2/Testing | Entered Access 47070 | -1/Access | Evolved 2 slots: Utility x2 47374 | -1/Access | Build established: Scavenger-Construct 47672 | -1/Access | Spotted B-99 Colossus 47923 | -1/Access | Found Prototype Launcher 47964 | -1/Access | Discovered new exit (range 8) 47968 | -1/Access | Identified exit to Command 47969 | -1/Access | Entered Command 48025 | -1/Command | Found Prototype Launcher 48257 | -1/Command | Spotted Alpha 7 48264 | -1/Command | Build established: Construct 48282 | -1/Command | Destroyed Alpha 7 48285 | -1/Command | Spotted B-99 Colossus 48292 | -1/Command | Destroyed B-99 Colossus 48319 | -1/Command | Identified Ghost Barrier 48409 | -1/Command | Identified Tactical Quantum Warhead 48469 | -1/Command | First assault squad dispatched 48621 | -1/Command | High security lockdown imminent 48623 | -1/Command | Build established: Hacker-Construct 48640 | -1/Command | Disengaged cave seal 48640 | -1/Command | Derelicts emerged from the dark tunnel 48641 | -1/Command | Welcomed Warlord to Command 48690 | -1/Command | Found Prototype Ballistic Gun 48693 | -1/Command | Found Prototype Ballistic Gun 48701 | -1/Command | High security lockdown engaged 48720 | -1/Command | Spotted M Guard 48720 | -1/Command | Spotted M Guard 48720 | -1/Command | Spotted Combat Programmer 48731 | -1/Command | Spotted Combat Programmer 48742 | -1/Command | Destroyed Combat Programmer 48747 | -1/Command | Destroyed Combat Programmer 48769 | -1/Command | Destroyed M Guard 48769 | -1/Command | All MAIN.C guards destroyed 48774 | -1/Command | Found Prototype Energy Cannon 48775 | -1/Command | Warlord commented on Warlord statues 48814 | -1/Command | Met MAIN.C 48814 | -1/Command | Hacked MAIN.C using A7's code 48836 | -1/Command | 0b10 Conduit disabled 48839 | -1/Command | Destroyed MAIN.C Shell 48840 | -1/Command | MAIN.C activated Command garrisons 48856 | -1/Command | Spotted Executioner 48873 | -1/Command | Destroyed MAIN.C 48874 | *** | Establishing Free Derelict Territories! Last Messages --------------- 48862_ Blast Slug penetrates G-73 Enforcer. 48865_ G-73 Enforcer Lgt. Quantum Reactor blasted off. 48865_ G-73 Enforcer destroyed. 48867_ Slug penetrates L-61 Swordsman. 48867_ Slug penetrates Warlord. 48868_ G-73 Enforcer Myomer Leg blasted off. 48868_ G-73 Enforcer knocked back. 48868_ MAIN.C reaction time slowed by virus. 48869_ Destroyed Cld. Antigrav System. 48869_ MAIN.C reaction time slowed by virus. 48870_ Destroyed Prototype Protection. 48872_ Blast Slug penetrates L-61 Swordsman. 48872_ L-61 Swordsman destroyed. 48872_ Blast Slug penetrates Reinforced Barrier. 48873_ MAIN.C destroyed. Warlord: Victory! Sure there's still lots to do, but without MAIN.C at the helm 0b10 doesn't stand a chance. We've got this... Map ----- +----------------------------------------------------+ | ?????????????????????????????????????????????????? | | ?????????????????????????????????????????????????? | | ?????????????????????????????????????????????????? | | ?????????????????????????????????????????????????? | | ?????????????????????????????????????????????????? | | ?????????????????????????????????????????????????? | | ?????????????????????????????????????????????????? | | ?????????????????????????????????????????????????? | | ?????????????????????????????????????????????????? | | ?????????????????????????????????????????????????? | | ?????????????????????????????????????????????????? | | ?????????????????????????????????????????????????? | | ?????????????????????????????????????????????????? | | ?????????????????????????????????????????????????? | | ?????????????????????????????????????????????????? | | ?????????????????????????????????????????????????? | | ?????????????????????????????????????????????????? | | ??????????????????##############?????????????????? | | ?????????????????? """" #?????????????????? | | ????????????????? "" #?????????????????? | | ????????????????? "" ################### | | ??????????????""""""" /l ggb % | | ??????????????" """ Wgbg= % | | ???????????????"""" % %/*Eg | | ?????????????? "" ################### | | ??????????%$! @ #?????????????????# | | ??????????![ [ #?????????????????# | | ???????????" " !%! ""#?????????????????# | | ???????????"""""""" ! """""""#?????????????????# | | ??????????????? """""""""#?????????????????# | | ?????????????? """""""""""#?????????????????# | | ????????????? " " " " #?????????????????# | | ???????????? " " " " ??????????????????# | | ????????????? "?"?" """" "???????????????????# | | ????????????? ""??????????"????????????????????# | | ?????????????? ??????????????????????????????????# | | ?????????????????????????????????????????????????? | | ?????????????????????????????????????????????????? | | ?????????????????????????????????????????????????? | | ?????????????????????????????????????????????????? | | ?????????????????????????????????????????????????? | | ?????????????????????????????????????????????????? | | ?????????????????????????????????????????????????? | | ?????????????????????????????????????????????????? | | ?????????????????????????????????????????????????? | | ?????????????????????????????????????????????????? | | ?????????????????????????????????????????????????? | | ?????????????????????????????????????????????????? | | ?????????????????????????????????????????????????? | | ?????????????????????????????????????????????????? | +----------------------------------------------------+ Best States ------------- Heat Dissipation 164 Energy Generation 53 Energy Capacity 1346 Matter Stores 300 Matter Capacity 300 Sight Range 22 Robot Scan Range 20 Terrain Scan Density 10 Jamming Range 16 Cloak Strength 4 Armor Coverage 1650 Resistance: KI 20 Resistance: TH 15 Resistance: EM 25 Core Shielding 20 Point Defense Rating 480 Weapon Cycling 30 Phase Shifting 20 Evasion (%) 74 Targeting Accuracy 20 Recoil Reduction 6 Kinecelleration 50 Offensive Hacking 12 Defensive Hacking 20 Item Schematics ----------------- Med. Storage Unit | -10/Materials | Hacked Trap Extractor | -9/Materials | Hacked Cold Fusion Reactor | -6/Hub_04(d) | Hacked Hcp. Storage Unit | -6/Hub_04(d) | Hacked Assault Drone Bay | -5/Zhirov | Free Exp. Heat Sink | -5/Zhirov | Free Exp. Optical Array | -5/Zhirov | Free Imp. Arc Thrower | -5/Zhirov | Free Robot Schematics ------------------ None Fabricated ------------ Hcp. Storage Unit | x1 | -4/Factory Alien Tech Used ----------------- Integrated Dissipator Phase Redirector Core Regenerator Achievements -------------- Poison In The Code Revolutionary Research Challenges ------------ None Game ------ Seed SpectralLayeredBrace Manual? 0 Play Time 09:24:35 Cumulative 533.6 hours Start 2023.06.01 @ 19:55:56 End 2023.06.17 @ 03:09:42 Sessions 15 Manual Loads 0 Difficulty Rogue Special Mode None Game No. 372 Rogue 372 Adventurer 0 Explorer 0 Win Type 7 Total 16 Types 8/3/1/0/0/1/2/1/0 Lore% 82 Gallery% 91 Achievement% 79 Wizard Run 0 Options --------- ASCII 0 Keyboard 0 Movement Numpad Keybinds 0 Fullscreen 2 Font 24/Terminus Map View 76x50 Tactical HUD 1 Map Filters NONE Filters NONE Steam 1 RUN: d7f85630-4728-4308-911d-926a6bcec26a